Workbook

Sheet INPUT
A1: =IF(H9=1,"BASE PERIOD WITH RIDERS","BASE PERIOD WITHOUT RIDERS") -> BASE PERIOD WITH RIDERS
A3: Input Areas in Grey
B4: 6 MOS ACTUAL/6MOS FORECASTED | D4: INCLUDES ALL RIDERS
B6: DUKE ENERGY KENTUCKY
B7: CASE NO. 2025-00125
B8: AUTOMATED RATE CASE FILING SYSTEM
B9: FOR THE TWELVE MONTHS ENDED AUGUST 31, 2025 | H9: 1
B11: TYPE OF SERVICE: | C11: (GAS SERVICE)
B12: DATA: _X_ BASE PERIOD ___FORECASTED PERIOD
B13: TYPE OF FILING: _X_ ORIGINAL ___UPDATED ___ REVISED
B15: WITNESS: | C15: B. L. Sailers
F16: @AUG2024 | G16: @SEP2024 | H16: @OCT2024 | I16: @NOV2024 | J16: @DEC2024 | K16: @JAN2025 | L16: @FEB2025
B17: CURRENT RATES: | D17: $ PER MCF | F17: 4.941 | G17: 5.183 | H17: 5.183 | I17: 5.183 | J17: 5.903 | K17: 5.903 | L17: 5.903
B18: EXPECTED GAS COST(1): | C18: =L18 -> 5.457 | D18: $ PER MCF | E18: Average | L18: =AVERAGE(F17:L17) -> 5.457
C20: Do not enter riders below. Enter them over here!
B21: Rider DSMR: | C21: Current | D21: Proposed | F21: ---------> | G21: Current | H21: Proposed
B22: Rate RS (HEA) | C22: =IF($H$9=1,G22,0) -> 0.3 | D22: =IF($H$9=1,H22,0) -> 0.3 | E22: Monthly | G22: 0.3 | H22: 0.3 | I22: Monthly
B23: Rate RS | C23: =IF($H$9=1,G23,0) -> 0.01249 | D23: =IF($H$9=1,H23,0) -> 0.01249 | E23: $ per MCF | G23: 0.01249 | H23: 0.01249 | I23: $ per MCF
B24: Rate GS | C24: =IF($H$9=1,G24,0) -> 0 | D24: =IF($H$9=1,H24,0) -> 0 | E24: $ per MCF | G24: 0 | H24: 0 | I24: $ per MCF
B26: Rider PMM: | C26: Current | D26: Proposed | G26: Current | H26: Proposed
B27: Rate RS | C27: =IF($H$9=1,G27,0) -> 1.2 | D27: 1.2 | E27: $ per MCF | G27: 1.2 | H27: 1.2 | I27: $ per MCF
B28: Rate GS | C28: 0.3 | D28: 0.3 | E28: $ per MCF | G28: 0.3 | H28: 0.3 | I28: $ per MCF
B29: Rate FT-L | C29: 0.0102 | D29: 0.0102 | E29: $ per MCF | G29: 0.0102 | H29: 0.0102 | I29: $ per MCF
B30: Rate IT | C30: 0.0115 | D30: 0.0115 | E30: $ per MCF | G30: 0.0115 | H30: 0.0115 | I30: $ per MCF
B32: Rider GCAT: | C32: Current | D32: Proposed
B33: Rate FT-L | C33: 0.037 | D33: 0.037 | E33: $ per MCF
B35: Interdepartmental Rates | C35: Current | D35: Proposed
B36: Customer Charge | E36: $ per MCF | F36: Not used
B39: Rate RS: | C39: Current | D39: Proposed
B40: Customer Charge | C40: 17.5 | D40: 21 | E40: $ per Month
B41: Delivery Rate | C41: 5.2474 | D41: 7.3613 | E41: $ per MCF
B43: Rate GS: | C43: Current | D43: Proposed
B44: Customer Charge | C44: 58 | D44: 65 | E44: $ per Month
B45: Delivery Rate | C45: 3.7443 | D45: 5.928 | E45: $ per MCF
B47: Rate FT-L: | C47: Current | D47: Proposed
B48: Administrative Charge | C48: 430 | D48: 430 | E48: $ per Month
B49: Delivery Rate | C49: 2.1976 | D49: 2.277 | E49: $ per MCF
B51: Rate IT: | C51: Current | D51: Proposed
B52: Administrative Charge | C52: 430 | D52: 430 | E52: $ per Month
B53: Commodity Charge | C53: 1.13 | D53: 1.1878 | E53: $ per MCF

Sheet PRINT
B6: SCHEDULE M-2.2 (CURRENT RATES) | L6: SCHEDULE M-2.3 (PROPOSED RATES)

Sheet SCH M
A1: =COMPANY -> DUKE ENERGY KENTUCKY
A2: =CASE -> CASE NO. 2025-00125
A3: REVENUES AT PRESENT AND PROPOSED RATES
A4: =TIME_PERIOD -> FOR THE TWELVE MONTHS ENDED AUGUST 31, 2025
A5: =SERV_TYPE -> (GAS SERVICE)
A7: =DATA_TYPE -> DATA: _X_ BASE PERIOD ___FORECASTED PERIOD | K7: SCHEDULE M
A8: =FILING_TYPE -> TYPE OF FILING: _X_ ORIGINAL ___UPDATED ___ REVISED | K8: PAGE 1 OF 1
A9: WORK PAPER REFERENCE NO(S).: | K9: WITNESS:
A10: =TIME -> 6 MOS ACTUAL/6MOS FORECASTED | K10: =WIT -> B. L. Sailers
A11: =INPUT!D4 -> INCLUDES ALL RIDERS
E14: REVENUE AT | G14: REVENUE AT | I14: REVENUE | K14: % OF
A15: LINE | C15: RATE | E15: PRESENT | G15: PROPOSED | I15: CHANGE | K15: REVENUE
A16: NO. | C16: CLASSIFICATION | E16: RATES | G16: RATES | I16: (AMOUNT) | K16: CHANGE
C17: (A) | E17: (B) | G17: (C) | I17: (D=C-B) | K17: (E=D / B)
E18: ($) | G18: ($) | I18: ($)
A19: 1 | C19: SALES SERVICE:
A21: 2 | C21: RS RESIDENTIAL | E21: ='Rate RS'!AN81 -> 92668894 | G21: ='Rate RS'!R39 -> 109511001 | I21: =G21-E21 -> 16842107 | K21: =IF(E21=0,"0.00%",ROUND(I21/E21,4)) -> 0.1817
A22: 3 | C22: TOTAL RS | E22: =E21 -> 92668894 | G22: =G21 -> 109511001 | I22: =I21 -> 16842107 | K22: =IF(E22=0,"0.00%",ROUND(I22/E22,4)) -> 0.1817
A24: 4 | C24: GS COMMERCIAL | E24: ='Rate GS COM'!AN79 -> 33215138 | G24: ='Rate GS COM'!R38 -> 40340749 | I24: =G24-E24 -> 7125611 | K24: =IF(E24=0,"0.00%",ROUND(I24/E24,4)) -> 0.2145
A25: 5 | C25: GS INDUSTRIAL | E25: ='Rate GS IND'!AN84 -> 1796219 | G25: ='Rate GS IND'!R38 -> 2196754 | I25: =G25-E25 -> 400535 | K25: =IF(E25=0,"0.00%",ROUND(I25/E25,4)) -> 0.223
A26: 6 | C26: GS OTHER PUB AUTH | E26: ='Rate GS OPA'!AN81 -> 2106137 | G26: ='Rate GS OPA'!R38 -> 2568469 | I26: =G26-E26 -> 462332 | K26: =IF(E26=0,"0.00%",ROUND(I26/E26,4)) -> 0.2195
A27: 7 | C27: TOTAL GS | E27: =SUM(E24:E26) -> 37117494 | G27: =SUM(G24:G26) -> 45105972 | I27: =SUM(I24:I26) -> 7988478 | K27: =IF(E27=0,"0.00%",ROUND(I27/E27,4)) -> 0.2152
A29: 8 | C29: TOTAL SALES SERVICE | E29: =E22+E27 -> 129786388 | G29: =G22+G27 -> 154616973 | I29: =I22+I27 -> 24830585 | K29: =IF(E29=0,"0.00%",ROUND(I29/E29,4)) -> 0.1913
A31: 9 | C31: TRANSPORTATION:
A33: 10 | C33: FT-L | E33: ='Rate FT-LG'!AN73 -> 6940463 | G33: ='Rate FT-LG'!R35 -> 7162567 | I33: =G33-E33 -> 222104 | K33: =IF(E33=0,"0.00%",ROUND(I33/E33,4)) -> 0.032
A34: 11 | C34: IT | E34: ='Rate IT'!AN74 -> 1917197 | G34: ='Rate IT'!R34 -> 2009354 | I34: =G34-E34 -> 92157 | K34: =IF(E34=0,"0.00%",ROUND(I34/E34,4)) -> 0.0481
A35: 12 | C35: TOTAL TRANSPORTATION | E35: =SUM(E33:E34) -> 8857660 | G35: =SUM(G33:G34) -> 9171921 | I35: =SUM(I33:I34) -> 314261 | K35: =IF(E35=0,"0.00%",ROUND(I35/E35,4)) -> 0.0355
A36: 13 | C36: TOTAL THROUGHPUT | E36: =E35+E29 -> 138644048 | G36: =G35+G29 -> 163788894 | I36: =I35+I29 -> 25144846 | K36: =IF(E36=0,"0.00%",ROUND(I36/E36,4)) -> 0.1814
A37: 14 | C37: MISCELLANEOUS REVENUES:
A39: 15 | C39: LATE PAYMENT CHARGES | E39: ='SCH M-2.2'!V37 -> 402203 | G39: ='SCH M-2.3'!R37 -> 402203 | I39: =G39-E39 -> 0 | K39: =IF(I39=0,"0.00%",ROUND(I39/E39,4)) -> 0.00%
A40: 16 | C40: BAD CHECK CHARGES | E40: ='SCH M-2.2'!V38 -> 14766 | G40: ='SCH M-2.3'!R38 -> 14766 | I40: 0 | K40: 0.00%
A41: 17 | C41: RECONNECTION CHARGES | E41: ='SCH M-2.2'!V39 -> 5957 | G41: ='SCH M-2.3'!R39 -> 7281 | I41: 1324 | K41: 0.2223
A42: 18 | C42: FIELD COLLECTION CHARGES | E42: ='SCH M-2.2'!V40 -> 0 | G42: ='SCH M-2.3'!R40 -> 0 | I42: 0 | K42: 0.00%
A43: 19 | C43: INTERDEPARTMENTAL | E43: ='SCH M-2.2'!V41 -> 30845 | G43: ='SCH M-2.3'!R41 -> 36958 | I43: 6113 | K43: 0.1982
A44: 20 | C44: SPECIAL CONTRACTS | E44: ='SCH M-2.2'!V42 -> 908211 | G44: ='SCH M-2.3'!R42 -> 1257450 | I44: 349239 | K44: 0.3845
A45: 21 | C45: REVENUE TRANSP OF GAS-INTERCO | E45: ='SCH M-2.2'!V43 -> 1795608 | G45: ='SCH M-2.3'!R43 -> 1795608 | I45: 0 | K45: 0.00%
A46: 22 | C46: PROVISION FOR RATE REFUNDS | E46: ='SCH M-2.2'!V44 -> 0 | G46: ='SCH M-2.3'!R44 -> 0 | I46: =G46-E46 -> 0 | K46: =IF(I46=0,"0.00%",ROUND(I46/E46,4)) -> 0.00%
A47: 23 | C47: OTHER MISC | E47: ='SCH M-2.2'!V45 -> 17602 | G47: ='SCH M-2.3'!R45 -> 17602 | I47: 0 | K47: 0.00%
A48: 24 | C48: TOTAL MISCELLANEOUS | E48: =SUM(E39:E47) -> 3175192 | G48: =SUM(G39:G47) -> 3531868 | I48: =SUM(I39:I47) -> 356676 | K48: 0.1123
A50: 25 | C50: TOTAL COMPANY REVENUE | E50: =E29++E35+E48 -> 141819240 | G50: =G29++G35+G48 -> 167320762 | I50: =I29++I35+I48 -> 25501522 | K50: =IF(I50=0,"0.00%",ROUND(I50/E50,4)) -> 0.1798

Sheet SCH M-2.1
A1: =COMPANY -> DUKE ENERGY KENTUCKY
A2: =CASE -> CASE NO. 2025-00125
A3: BASE PERIOD REVENUES AT CURRENT AVERAGE RATES
A4: =TIME_PERIOD -> FOR THE TWELVE MONTHS ENDED AUGUST 31, 2025
A5: =SERV_TYPE -> (GAS SERVICE)
A6: =DATA_TYPE -> DATA: _X_ BASE PERIOD ___FORECASTED PERIOD | R6: SCHEDULE M-2.1
A7: =FILING_TYPE -> TYPE OF FILING: _X_ ORIGINAL ___UPDATED ___ REVISED | R7: PAGE 1 OF 1
A8: WORK PAPER REFERENCE NO(S).: | R8: WITNESS:
A9: =TIME -> 6 MOS ACTUAL/6MOS FORECASTED | F9: =INPUT!D4 -> INCLUDES ALL RIDERS | R9: =WIT -> B. L. Sailers
A10: BASE PERIOD
J12: BASE PERIOD | N12: % OF REV
J13: REVENUE LESS | L13: CURRENT | N13: TO TOTAL | R13: BASE PERIOD
A14: LINE | C14: RATE | D14: CLASS / | F14: CUSTOMER | J14: GAS COST | L14: AVERAGE | N14: EXCLUSIVE OF | P14: GAS COST | R14: REVENUE | T14: % OF REV
A15: NO. | C15: CODE | D15: DESCRIPTION | F15: BILLS | H15: SALES | J15: REVENUE | L15: RATE | N15: GAS COST | P15: REVENUE | R15: TOTAL | T15: TO TOTAL
C16: (A) | D16: (B) | F16: (C) | H16: (D) | J16: (E) | L16: (F=E/D) | N16: (G) | P16: (H) | R16: (I) | T16: (J)
H18: (MCF) | J18: ($) | L18: ($/MCF) | N18: (%) | P18: ($) | R18: ($) | T18: (%)
A19: 1 | C19: RS | D19: RESIDENTIAL SERVICE | F19: ='Rate RS'!X81 -> 1179108 | H19: ='Rate RS'!Z81 -> 6015057 | J19: ='Rate RS'!AD81 -> 59844728 | L19: =IF(H19=0,"-",ROUND(J19/H19,4)) -> 9.9492 | N19: =IF(ABS(J19/$J$34*100)<0.005,"-",ROUND(J19/$J$34*100,2))-0.01 -> 66.11 | P19: ='Rate RS'!AL81 -> 32824166 | R19: =J19+P19 -> 92668894 | T19: =IF(ABS(R19/$R$34*100)<0.005,"-",ROUND(R19/$R$34*100,2))+0.01 -> 65.35
A20: 2 | C20: GS | D20: GENERAL SERVICE COMMERCIAL | F20: ='Rate GS COM'!X79 -> 80294 | H20: ='Rate GS COM'!Z79 -> 3005703 | J20: ='Rate GS COM'!AD79 -> 16813017 | L20: =IF(H20=0,"-",ROUND(J20/H20,4)) -> 5.5937 | N20: =IF(ABS(J20/$J$34*100)<0.005,"-",ROUND(J20/$J$34*100,2)) -> 18.58 | P20: ='Rate GS COM'!AL79 -> 16402121 | R20: =J20+P20 -> 33215138 | T20: =IF(ABS(R20/$R$34*100)<0.005,"-",ROUND(R20/$R$34*100,2)) -> 23.42
A21: 3 | C21: GS | D21: GENERAL SERVICE INDUSTRIAL | F21: ='Rate GS IND'!X84 -> 1942 | H21: ='Rate GS IND'!Z84 -> 177195 | J21: ='Rate GS IND'!AD84 -> 829266 | L21: 4.68 | N21: 0.92 | P21: ='Rate GS IND'!AL84 -> 966953 | R21: 1796219 | T21: 1.27
A22: 4 | C22: GS | D22: GENERAL SERVICE OTHER PUB AUTH | F22: ='Rate GS OPA'!X81 -> 3432 | H22: ='Rate GS OPA'!Z81 -> 200718 | J22: ='Rate GS OPA'!AD81 -> 1010819 | L22: 5.036 | N22: 1.12 | P22: ='Rate GS OPA'!AL81 -> 1095318 | R22: 2106137 | T22: 1.49
A23: 5 | C23: FT-L | D23: FIRM TRANSPORTATION-LARGE | F23: ='Rate FT-LG'!X73 -> 1771 | H23: ='Rate FT-LG'!Z73 -> 2797277 | J23: ='Rate FT-LG'!AD73 -> 6937358 | L23: 2.48 | N23: 7.66 | P23: ='Rate FT-LG'!AL73 -> 3105 | R23: 6940463 | T23: 4.89
A24: 6 | C24: IT | D24: INTERRUPTIBLE TRANSPORTATION | F24: ='Rate IT'!X74 -> 226 | H24: ='Rate IT'!Z74 -> 1594408 | J24: ='Rate IT'!AD74 -> 1917197 | L24: =IF(H24=0,"-",ROUND(J24/H24,4)) -> 1.2025 | N24: 2.12 | P24: ='Rate IT'!AL74 -> 0 | R24: =J24+P24 -> 1917197 | T24: 1.35
A25: 7 | D25: LATE PAYMENT CHARGES | F25: ='SCH M-2.2'!F37 -> 0 | H25: ='SCH M-2.2'!H37 -> 0 | J25: ='SCH M-2.2'!L37 -> 402203 | L25: =IF(H25=0,"-",ROUND(J25/H25,4)) -> - | N25: 0.44 | P25: ='SCH M-2.2'!T37 -> 0 | R25: 402203 | T25: 0.28
A26: 8 | D26: BAD CHECK CHARGES | F26: ='SCH M-2.2'!F38 -> 0 | H26: ='SCH M-2.2'!H38 -> 0 | J26: ='SCH M-2.2'!L38 -> 14766 | L26: - | N26: 0.02 | P26: ='SCH M-2.2'!T38 -> 0 | R26: 14766 | T26: 0.01
A27: 9 | D27: RECONNECTION CHARGES | F27: ='SCH M-2.2'!F39 -> 0 | H27: ='SCH M-2.2'!H39 -> 0 | J27: ='SCH M-2.2'!L39 -> 5957 | L27: - | N27: 0.01 | P27: ='SCH M-2.2'!T39 -> 0 | R27: 5957 | T27: -
A28: 10 | D28: FIELD COLLECTION CHARGES | F28: ='SCH M-2.2'!F40 -> 0 | H28: ='SCH M-2.2'!H40 -> 0 | J28: ='SCH M-2.2'!L40 -> 0 | L28: - | N28: - | P28: ='SCH M-2.2'!T40 -> 0 | R28: 0 | T28: -
A29: 11 | D29: INTERDEPARTMENTAL | F29: ='SCH M-2.2'!F41 -> 0 | H29: ='SCH M-2.2'!H41 -> 2928 | J29: ='SCH M-2.2'!L41 -> 14867 | L29: 5.0775 | N29: 0.02 | P29: ='SCH M-2.2'!T41 -> 15978 | R29: 30845 | T29: 0.02
A30: 12 | D30: SPECIAL CONTRACTS | F30: ='SCH M-2.2'!F42 -> 0 | H30: ='SCH M-2.2'!H42 -> 0 | J30: ='SCH M-2.2'!L42 -> 908211 | L30: - | N30: 1 | P30: ='SCH M-2.2'!T42 -> 0 | R30: 908211 | T30: 0.64
A31: 13 | D31: REVENUE TRANSP OF GAS-INTERCO | F31: ='SCH M-2.2'!F43 -> 0 | H31: ='SCH M-2.2'!H43 -> 0 | J31: ='SCH M-2.2'!L43 -> 1795608 | L31: - | N31: 1.98 | P31: ='SCH M-2.2'!T43 -> 0 | R31: 1795608 | T31: 1.27
A32: 14 | D32: PROVISION FOR RATE REFUNDS | F32: ='SCH M-2.2'!F44 -> 0 | H32: ='SCH M-2.2'!H44 -> 0 | J32: ='SCH M-2.2'!L44 -> 0 | L32: =IF(H32=0,"-",ROUND(J32/H32,4)) -> - | N32: - | P32: ='SCH M-2.2'!T44 -> 0 | R32: =J32+P32 -> 0 | T32: -
A33: 15 | D33: OTHER MISCELLANEOUS | F33: ='SCH M-2.2'!F45 -> 0 | H33: ='SCH M-2.2'!H45 -> 0 | J33: ='SCH M-2.2'!L45 -> 17602 | L33: - | N33: 0.02 | P33: ='SCH M-2.2'!T45 -> 0 | R33: 17602 | T33: 0.01
A34: 16 | C34: TOTAL | F34: =SUM(F19:F33) -> 1266773 | H34: =SUM(H19:H33) -> 13793286 | J34: =SUM(J19:J33) -> 90511599 | L34: =IF(H34=0,"-",ROUND(J34/H34,4)) -> 6.562 | N34: =SUM(N19:N33) -> 100 | P34: =SUM(P19:P33) -> 51307641 | R34: =SUM(R19:R33) -> 141819240 | T34: =SUM(T19:T33) -> 100
C36: NOTE: DETAIL CONTAINED ON SCHEDULES M-2.2 AND M-2.3.

Sheet SCH M-2.2
A1: =COMPANY -> DUKE ENERGY KENTUCKY
A2: =CASE -> CASE NO. 2025-00125
A3: ANNUALIZED REVENUES AT PROPOSED VS. MOST CURRENT RATES
A4: =TIME_PERIOD -> FOR THE TWELVE MONTHS ENDED AUGUST 31, 2025
A5: =SERV_TYPE -> (GAS SERVICE)
A6: =DATA_TYPE -> DATA: _X_ BASE PERIOD ___FORECASTED PERIOD | V6: SCHEDULE M-2.2
A7: =FILING_TYPE -> TYPE OF FILING: _X_ ORIGINAL ___UPDATED ___ REVISED | V7: PAGE 1 OF 7
A8: WORK PAPER REFERENCE NO(S).: | V8: WITNESS:
A9: =TIME -> 6 MOS ACTUAL/6MOS FORECASTED | F9: =INPUT!D4 -> INCLUDES ALL RIDERS | V9: =WIT -> B. L. Sailers
A10: CURRENT ANNUALIZED
L12: CURRENT | N12: % OF REV TO | P12: REVENUE | R12: % INCR IN | V12: CURRENT | X12: TOTAL
J13: MOST | L13: REVENUE LESS | N13: TOTAL LESS | P13: INCR LESS | R13: REV LESS | V13: TOTAL | X13: REVENUE
A14: LINE | C14: RATE | D14: CLASS / | F14: CUSTOMER | J14: CURRENT | L14: GAS COST | N14: GAS COST | P14: GAS COST REV | R14: GAS COST REV | T14: GAS COST | V14: REVENUE | X14: % INCREASE
A15: NO. | C15: CODE | D15: DESCRIPTION | F15: BILLS(1) | H15: SALES(2) | J15: RATES | L15: REVENUE(4) | N15: REVENUE | P15: (F - K) | R15: (M / K) | T15: REVENUE(3) | V15: (K + H) | X15: (M / K1)
C16: (A) | D16: (B) | F16: (C) | H16: (D) | J16: (J) | L16: (K) | N16: (L) | P16: (M) | R16: (N) | T16: (H) | V16: (K1) | X16: (O)
H18: (MCF) | J18: ($/MCF) | L18: ($) | N18: (%) | P18: ($) | R18: (%) | T18: ($) | V18: ($) | X18: (%)
A19: 1 | C19: SALES SERVICE:
A20: 2 | C20: RS | D20: RESIDENTIAL | F20: ='Rate RS'!X81 -> 1179108 | H20: ='Rate RS'!Z81 -> 6015057 | J20: =ROUND((L20/H20),4) -> 9.9492 | L20: ='Rate RS'!AD81 -> 59844728 | N20: =ROUND((L20/L$21)*100,2) -> 100 | P20: ='Rate RS'!AH81 -> 16842107 | R20: =IF(L20=0,"0.0 ",ROUND((P20/L20)*100,1)) -> 28.1 | T20: ='Rate RS'!AL81 -> 32824166 | V20: ='Rate RS'!AN81 -> 92668894 | X20: =IF(V20=0,"0.0 ",ROUND((P20/V20)*100,1)) -> 18.2
A21: 3 | D21: TOTAL RS | F21: =F20 -> 1179108 | H21: =H20 -> 6015057 | J21: =ROUND((L21/H21),4) -> 9.9492 | L21: =L20 -> 59844728 | N21: =ROUND((L21/$L48)*100,2) -> 66.12 | P21: =P20 -> 16842107 | R21: =IF(L21=0,"0.0 ",ROUND((P21/L21)*100,1)) -> 28.1 | T21: =T20 -> 32824166 | V21: =V20 -> 92668894 | X21: =IF(V21=0,"0.0 ",ROUND((P21/V21)*100,1)) -> 18.2
A23: 4 | C23: GS | D23: COMMERCIAL | F23: ='Rate GS COM'!X79 -> 80294 | H23: ='Rate GS COM'!Z79 -> 3005703 | J23: =ROUND((L23/H23),4) -> 5.5937 | L23: ='Rate GS COM'!AD79 -> 16813017 | N23: =ROUND((L23/$L26)*100,2) -> 90.14 | P23: ='Rate GS COM'!AH79 -> 7125611 | R23: =IF(L23=0,"0.0 ",ROUND((P23/L23)*100,1)) -> 42.4 | T23: ='Rate GS COM'!AL79 -> 16402121 | V23: ='Rate GS COM'!AN79 -> 33215138 | X23: =IF(V23=0,"0.0 ",ROUND((P23/V23)*100,1)) -> 21.5
A24: 5 | C24: GS | D24: INDUSTRIAL | F24: ='Rate GS IND'!X84 -> 1942 | H24: ='Rate GS IND'!Z84 -> 177195 | J24: =ROUND((L24/H24),4) -> 4.68 | L24: ='Rate GS IND'!AD84 -> 829266 | N24: =ROUND((L24/$L26)*100,2) -> 4.45 | P24: ='Rate GS IND'!AH84 -> 400535 | R24: =IF(L24=0,"0.0 ",ROUND((P24/L24)*100,1)) -> 48.3 | T24: ='Rate GS IND'!AL84 -> 966953 | V24: ='Rate GS IND'!AN84 -> 1796219 | X24: =IF(V24=0,"0.0 ",ROUND((P24/V24)*100,1)) -> 22.3
A25: 6 | C25: GS | D25: OTH PUB AUTH | F25: ='Rate GS OPA'!X81 -> 3432 | H25: ='Rate GS OPA'!Z81 -> 200718 | J25: =ROUND((L25/H25),4) -> 5.036 | L25: ='Rate GS OPA'!AD81 -> 1010819 | N25: =ROUND((L25/$L26)*100,2) -> 5.42 | P25: ='Rate GS OPA'!AH81 -> 462332 | R25: =IF(L25=0,"0.0 ",ROUND((P25/L25)*100,1)) -> 45.7 | T25: ='Rate GS OPA'!AL81 -> 1095318 | V25: ='Rate GS OPA'!AN81 -> 2106137 | X25: =IF(V25=0,"0.0 ",ROUND((P25/V25)*100,1)) -> 22
A26: 7 | D26: TOTAL GS | F26: =SUM(F23:F25) -> 85668 | H26: =SUM(H23:H25) -> 3383616 | J26: =ROUND((L26/H26),4) -> 5.5128 | L26: =SUM(L23:L25) -> 18653102 | N26: =ROUND((L26/$L48)*100,2) -> 20.61 | P26: =SUM(P23:P25) -> 7988478 | R26: =IF(L26=0,"0.0 ",ROUND((P26/L26)*100,1)) -> 42.8 | T26: =SUM(T23:T25) -> 18464392 | V26: =SUM(V23:V25) -> 37117494 | X26: =IF(V26=0,"0.0 ",ROUND((P26/V26)*100,1)) -> 21.5
A28: 8 | C28: TOTAL SALES SERVICE | F28: =F21+F26 -> 1264776 | H28: =H21+H26 -> 9398673 | J28: =ROUND((L28/H28),4) -> 8.352 | L28: =L21+L26 -> 78497830 | N28: =100-N33-N46 -> 86.73 | P28: =P21+P26 -> 24830585 | R28: =IF(L28=0,"0.0 ",ROUND((P28/L28)*100,1)) -> 31.6 | T28: =T21+T26 -> 51288558 | V28: =V21+V26 -> 129786388 | X28: =IF(V28=0,"0.0 ",ROUND((P28/V28)*100,1)) -> 19.1
A30: 9 | C30: TRANSPORTATION SERVICE:
A31: 10 | C31: FT-L | D31: FIRM TRANSP - LARGE | F31: ='Rate FT-LG'!X73 -> 1771 | H31: ='Rate FT-LG'!Z73 -> 2797277 | J31: =ROUND((L31/H31),4) -> 2.48 | L31: ='Rate FT-LG'!AD73 -> 6937358 | N31: =ROUND((L31/L$33)*100,2) -> 78.35 | P31: ='Rate FT-LG'!AH73 -> 222104 | R31: =IF(L31=0,"0.0 ",ROUND((P31/L31)*100,1)) -> 3.2 | T31: ='Rate FT-LG'!AL73 -> 3105 | V31: ='Rate FT-LG'!AN73 -> 6940463 | X31: =IF(V31=0,"0.0 ",ROUND((P31/V31)*100,1)) -> 3.2
A32: 11 | C32: IT | D32: INTERRUPTIBLE TRANSP | F32: ='Rate IT'!X74 -> 226 | H32: ='Rate IT'!Z74 -> 1594408 | J32: =ROUND((L32/H32),4) -> 1.2025 | L32: ='Rate IT'!AD74 -> 1917197 | N32: =ROUND((L32/L$33)*100,2) -> 21.65 | P32: ='Rate IT'!AH74 -> 92157 | R32: =IF(L32=0,"0.0 ",ROUND((P32/L32)*100,1)) -> 4.8 | T32: ='Rate IT'!AL74 -> 0 | V32: ='Rate IT'!AN74 -> 1917197 | X32: =IF(V32=0,"0.0 ",ROUND((P32/V32)*100,1)) -> 4.8
A33: 12 | C33: TOTAL TRANSP SERVICE | F33: =SUM(F31:F32) -> 1997 | H33: =SUM(H31:H32) -> 4391685 | J33: =ROUND((L33/H33),4) -> 2.0162 | L33: =SUM(L31:L32) -> 8854555 | N33: =ROUND((L33/L$48)*100,2) -> 9.78 | P33: =SUM(P31:P32) -> 314261 | R33: =IF(L33=0,"0.0 ",ROUND((P33/L33)*100,1)) -> 3.5 | T33: =SUM(T31:T32) -> 3105 | V33: =SUM(V31:V32) -> 8857660 | X33: =IF(V33=0,"0.0 ",ROUND((P33/V33)*100,1)) -> 3.5
A34: 13 | C34: TOTAL THROUGHPUT | F34: =F28+F33 -> 1266773 | H34: =H28+H33 -> 13790358 | J34: =ROUND((L34/H34),4) -> 6.3343 | L34: =L28+L33 -> 87352385 | N34: =N28+N33 -> 96.51 | P34: =P28+P33 -> 25144846 | R34: =IF(L34=0,"0.0 ",ROUND((P34/L34)*100,1)) -> 28.8 | T34: =T28+T33 -> 51291663 | V34: =V28+V33 -> 138644048 | X34: =IF(V34=0,"0.0 ",ROUND((P34/V34)*100,1)) -> 18.1
A36: 14 | C36: MISCELLANEOUS REVENUES:
A37: 15 | C37: LATE PAYMENT CHARGES | F37: 0 | H37: 0 | L37: 402203 | N37: =ROUND((L37/L$46)*100,2) -> 12.73 | P37: ='SCH M-2.3'!L37-'SCH M-2.2'!L37 -> 0 | T37: 0 | V37: =L37+T37 -> 402203
A38: 16 | C38: BAD CHECK CHARGES | F38: 0 | H38: 0 | L38: 14766 | N38: 0.47 | P38: ='SCH M-2.3'!L38-'SCH M-2.2'!L38 -> 0 | T38: 0 | V38: =L38+T38 -> 14766
A39: 17 | C39: RECONNECTION CHARGES | F39: 0 | H39: 0 | L39: 5957 | N39: 0.19 | P39: ='SCH M-2.3'!L39-'SCH M-2.2'!L39 -> 1324 | T39: 0 | V39: 5957
A40: 18 | C40: FIELD COLLECTION CHARGES | F40: 0 | H40: 0 | L40: 0 | N40: 0 | P40: ='SCH M-2.3'!L40-'SCH M-2.2'!L40 -> 0 | T40: 0 | V40: 0
A41: 19 | C41: INTERDEPARTMENTAL | F41: 0 | H41: 2928 | L41: =ROUND(V41-(H41*EGC),0) -> 14867 | N41: =ROUND((L41/L$46)*100,2) -> 0.47 | P41: ='SCH M-2.3'!L41-'SCH M-2.2'!L41 -> 6113 | T41: =V41-L41 -> 15978 | V41: 30845
A42: 20 | C42: SPECIAL CONTRACTS | F42: 0 | H42: 0 | L42: 908211 | N42: 28.75 | P42: ='SCH M-2.3'!L42-'SCH M-2.2'!L42 -> 349239 | T42: 0 | V42: 908211
A43: 21 | C43: REVENUE TRANSP OF GAS-INTERCO | F43: 0 | H43: 0 | L43: 1795608 | N43: 56.84 | P43: ='SCH M-2.3'!L43-'SCH M-2.2'!L43 -> 0 | T43: 0 | V43: 1795608
A44: 22 | C44: PROVISION FOR RATE REFUNDS | F44: 0 | H44: 0 | L44: 0 | N44: 0 | P44: ='SCH M-2.3'!L44-'SCH M-2.2'!L44 -> 0 | T44: 0 | V44: =L44+T44 -> 0
A45: 23 | C45: OTHER MISC | F45: 0 | H45: 0 | L45: 17602 | N45: 0.56 | P45: ='SCH M-2.3'!L45-'SCH M-2.2'!L45 -> 0 | T45: 0 | V45: 17602
A46: 24 | C46: TOTAL MISC | F46: =SUM(F37:F45) -> 0 | H46: =SUM(H37:H45) -> 2928 | L46: =SUM(L37:L45) -> 3159214 | N46: =ROUND((L46/L$48)*100,2) -> 3.49 | P46: =SUM(P37:P45) -> 356676 | R46: =IF(L46=0,"0.0 ",ROUND((P46/L46)*100,1)) -> 11.3 | T46: =SUM(T37:T45) -> 15978 | V46: =SUM(V37:V45) -> 3175192 | X46: =IF(V46=0,"0.0 ",ROUND((P46/V46)*100,1)) -> 11.2
A48: 25 | C48: TOTAL COMPANY | F48: =F28+F33+F46 -> 1266773 | H48: =H28+H33+H46 -> 13793286 | J48: =ROUND((L48/H48),4) -> 6.562 | L48: =L28+L33+L46 -> 90511599 | N48: 100 | P48: =P28+P33+P46 -> 25501522 | R48: =IF(L48=0,"0.0 ",ROUND((P48/L48)*100,1)) -> 28.2 | T48: =T28+T33+T46 -> 51307641 | V48: =V28+V33+V46 -> 141819240 | X48: =IF(V48=0,"0.0 ",ROUND((P48/V48)*100,1)) -> 18
C50: (1) DETAIL CONTAINED ON SCHEDULES M-2.2, PAGES 2 THROUGH 7.
C51: (2) REFLECTS NORMALIZED VOLUMES.
C52: ="(3) REFLECTS AVERAGE EXPECTED GAS COST OF "&TEXT(EGC,"$0.000")&"/MCF." -> (3) REFLECTS AVERAGE EXPECTED GAS COST OF $5.457/MCF.

Sheet SCH M-2.3
A1: =COMPANY -> DUKE ENERGY KENTUCKY
A2: =CASE -> CASE NO. 2025-00125
A3: ANNUALIZED REVENUES AT PROPOSED VS. MOST CURRENT RATES
A4: =TIME_PERIOD -> FOR THE TWELVE MONTHS ENDED AUGUST 31, 2025
A5: =SERV_TYPE -> (GAS SERVICE)
A6: =DATA_TYPE -> DATA: _X_ BASE PERIOD ___FORECASTED PERIOD | R6: SCHEDULE M-2.3
A7: =FILING_TYPE -> TYPE OF FILING: _X_ ORIGINAL ___UPDATED ___ REVISED | R7: PAGE 1 OF 7
A8: WORK PAPER REFERENCE NO(S).: | R8: WITNESS:
A9: =TIME -> 6 MOS ACTUAL/6MOS FORECASTED | F9: =INPUT!D4 -> INCLUDES ALL RIDERS | R9: =WIT -> B. L. Sailers
A10: PROPOSED ANNUALIZED
L12: PROPOSED | N12: % OF REV TO | R12: PROPOSED
L13: REVENUE LESS | N13: TOTAL LESS | R13: TOTAL
A14: LINE | C14: RATE | D14: CLASS / | F14: CUSTOMER | J14: PROPOSED | L14: GAS COST | N14: GAS COST | P14: GAS COST | R14: REVENUE
A15: NO. | C15: CODE | D15: DESCRIPTION | F15: BILLS(1) | H15: SALES(2) | J15: RATES | L15: REVENUE(4) | N15: REVENUE | P15: REVENUE(3) | R15: (F + H)
C16: (A) | D16: (B) | F16: (C) | H16: (D) | J16: (E) | L16: (F) | N16: (G) | P16: (H) | R16: (I)
H18: (MCF) | J18: ($/MCF) | L18: ($) | N18: (%) | P18: ($) | R18: ($)
A19: 1 | C19: SALES SERVICE:
A20: 2 | C20: RS | D20: RESIDENTIAL | F20: ='Rate RS'!F39 -> 1179108 | H20: ='Rate RS'!H39 -> 6015057 | J20: =IF(F20=0,"0.0 ",ROUND((L20/H20),4)) -> 12.7491 | L20: ='Rate RS'!L39 -> 76686835 | N20: =ROUND((L20/L$21)*100,2) -> 100 | P20: ='Rate RS'!P39 -> 32824166 | R20: ='Rate RS'!R39 -> 109511001
A21: 3 | D21: TOTAL RS | F21: =F20 -> 1179108 | H21: =H20 -> 6015057 | J21: =IF(F21=0,"0.0 ",ROUND((L21/H21),4)) -> 12.7491 | L21: =L20 -> 76686835 | N21: =ROUND((L21/L$48)*100,2) -> 66.1 | P21: =P20 -> 32824166 | R21: =R20 -> 109511001
A23: 4 | C23: GS | D23: COMMERCIAL | F23: ='Rate GS COM'!F38 -> 80294 | H23: ='Rate GS COM'!H38 -> 3005703 | J23: =IF(F23=0,"0.0 ",ROUND((L23/H23),4)) -> 7.9644 | L23: ='Rate GS COM'!L38 -> 23938628 | N23: =ROUND((L23/L$26)*100,2)-0.01 -> 89.84 | P23: ='Rate GS COM'!P38 -> 16402121 | R23: ='Rate GS COM'!R38 -> 40340749
A24: 5 | C24: GS | D24: INDUSTRIAL | F24: ='Rate GS IND'!F38 -> 1942 | H24: ='Rate GS IND'!H38 -> 177195 | J24: =IF(F24=0,"0.0 ",ROUND((L24/H24),4)) -> 6.9404 | L24: ='Rate GS IND'!L38 -> 1229801 | N24: =ROUND((L24/L$26)*100,2) -> 4.62 | P24: ='Rate GS IND'!P38 -> 966953 | R24: ='Rate GS IND'!R38 -> 2196754
A25: 6 | C25: GS | D25: OTH PUB AUTH | F25: ='Rate GS OPA'!F38 -> 3432 | H25: ='Rate GS OPA'!H38 -> 200718 | J25: =IF(F25=0,"0.0 ",ROUND((L25/H25),4)) -> 7.3394 | L25: ='Rate GS OPA'!L38 -> 1473151 | N25: =ROUND((L25/L$26)*100,2) -> 5.53 | P25: ='Rate GS OPA'!P38 -> 1095318 | R25: ='Rate GS OPA'!R38 -> 2568469
A26: 7 | D26: TOTAL GS | F26: =SUM(F23:F25) -> 85668 | H26: =SUM(H23:H25) -> 3383616 | J26: =IF(F26=0,"0.0 ",ROUND((L26/H26),4)) -> 7.8737 | L26: =SUM(L23:L25) -> 26641580 | N26: =ROUND((L26/L$48)*100,2) -> 22.96 | P26: =SUM(P23:P25) -> 18464392 | R26: =SUM(R23:R25) -> 45105972
A28: 8 | C28: TOTAL SALES SERVICE | F28: =F21+F26 -> 1264776 | H28: =H21+H26 -> 9398673 | J28: =IF(F28=0,"0.0 ",ROUND((L28/H28),4)) -> 10.9939 | L28: =L21+L26 -> 103328415 | N28: =ROUND((L28/L$48)*100,2) -> 89.07 | P28: =P21+P26 -> 51288558 | R28: =R21+R26 -> 154616973
A30: 9 | C30: TRANSPORTATION SERVICE:
A31: 10 | C31: FT-L | D31: FIRM TRANSP - LARGE | F31: ='Rate FT-LG'!F35 -> 1771 | H31: ='Rate FT-LG'!H35 -> 2797277 | J31: =IF(F31=0,"0.0 ",ROUND((L31/H31),4)) -> 2.5594 | L31: ='Rate FT-LG'!L35 -> 7159462 | N31: =ROUND((L31/L$33)*100,2) -> 78.08 | P31: ='Rate FT-LG'!P35 -> 3105 | R31: ='Rate FT-LG'!R35 -> 7162567
A32: 11 | C32: IT | D32: INTERRUPTIBLE TRANSP | F32: ='Rate IT'!F34 -> 226 | H32: ='Rate IT'!H34 -> 1594408 | J32: =IF(F32=0,"0.0 ",ROUND((L32/H32),4)) -> 1.2603 | L32: ='Rate IT'!L34 -> 2009354 | N32: =ROUND((L32/L$33)*100,2) -> 21.92 | P32: ='Rate IT'!P34 -> 0 | R32: ='Rate IT'!R34 -> 2009354
A33: 12 | C33: TOTAL TRANSP SERVICE | F33: =SUM(F31:F32) -> 1997 | H33: =SUM(H31:H32) -> 4391685 | J33: =IF(F33=0,"0.0 ",ROUND((L33/H33),4)) -> 2.0878 | L33: =SUM(L31:L32) -> 9168816 | N33: =ROUND((L33/L$48)*100,2) -> 7.9 | P33: =SUM(P31:P32) -> 3105 | R33: =SUM(R31:R32) -> 9171921
A34: 13 | C34: TOTAL THROUGHPUT | F34: =F28+F33 -> 1266773 | H34: =H28+H33 -> 13790358 | J34: =IF(F34=0,"0.0 ",ROUND((L34/H34),4)) -> 8.1577 | L34: =L28+L33 -> 112497231 | N34: =N28+N33 -> 96.97 | P34: =P28+P33 -> 51291663 | R34: =R28+R33 -> 163788894
A36: 14 | C36: MISCELLANEOUS REVENUES:
A37: 15 | C37: LATE PAYMENT CHARGES | F37: 0 | H37: 0 | L37: ='SCH M-2.2'!L37 -> 402203 | N37: =ROUND((L37/L$46)*100,2) -> 11.44 | P37: 0 | R37: =L37+P37 -> 402203
A38: 16 | C38: BAD CHECK CHARGES | F38: 0 | H38: 0 | L38: ='SCH M-2.2'!L38 -> 14766 | N38: 0.42 | P38: 0 | R38: 14766
A39: 17 | C39: RECONNECTION CHARGES | F39: 0 | H39: 0 | L39: =ROUND('SCH M-2.2'!L39*1.2222,0) -> 7281 | N39: 0.21 | P39: 0 | R39: 7281
A40: 18 | C40: FIELD COLLECITON CHARGES | F40: 0 | H40: 0 | L40: ='SCH M-2.2'!L40 -> 0 | N40: 0 | P40: 0 | R40: 0
A41: 19 | C41: INTERDEPARTMENTAL | F41: ='SCH M-2.2'!F41 -> 0 | H41: ='SCH M-2.2'!H41 -> 2928 | L41: =R41-P41 -> 20980 | N41: 0.6 | P41: ='SCH M-2.2'!T41 -> 15978 | R41: 36958
A42: 20 | C42: SPECIAL CONTRACTS | F42: ='SCH M-2.2'!F42 -> 0 | H42: ='SCH M-2.2'!H42 -> 0 | L42: 1257450 | N42: 35.76 | P42: 0 | R42: 1257450
A43: 21 | C43: REVENUE TRANSP OF GAS-INTERCO | F43: 0 | H43: ='SCH M-2.2'!H43 -> 0 | L43: ='SCH M-2.2'!L43 -> 1795608 | N43: 51.07 | P43: 0 | R43: 1795608
A44: 22 | C44: PROVISION FOR RATE REFUNDS | F44: 0 | H44: ='SCH M-2.2'!H44 -> 0 | L44: ='SCH M-2.2'!L44 -> 0 | N44: =ROUND((L44/L$46)*100,2)+0.01 -> 0.01 | P44: 0 | R44: 0
A45: 23 | C45: OTHER MISC | F45: 0 | H45: 0 | L45: ='SCH M-2.2'!L45 -> 17602 | N45: 0.5 | P45: 0 | R45: 17602
A46: 24 | C46: TOTAL MISC | F46: =SUM(F37:F45) -> 0 | H46: =SUM(H37:H45) -> 2928 | L46: =SUM(L37:L45) -> 3515890 | N46: =ROUND((L46/L$48)*100,2) -> 3.03 | P46: =SUM(P37:P45) -> 15978 | R46: =SUM(R37:R45) -> 3531868
A48: 25 | C48: TOTAL COMPANY | F48: =F28+F33+F46 -> 1266773 | H48: =H28+H33+H46 -> 13793286 | J48: =IF(F48=0,"0.0 ",ROUND((L48/H48),4)) -> 8.4108 | L48: =L28+L33+L46 -> 116013121 | N48: 100 | P48: =P28+P33+P46 -> 51307641 | R48: =R28+R33+R46 -> 167320762
C50: (1) DETAIL CONTAINED ON SCHEDULES M-2.3, PAGES 2 THROUGH 7.
C51: (2) REFLECTS NORMALIZED VOLUMES.
C52: ="(3) REFLECTS AVERAGE EXPECTED GAS COST OF "&TEXT(EGC,"$0.000")&"/MCF." -> (3) REFLECTS AVERAGE EXPECTED GAS COST OF $5.457/MCF.

Sheet Rate RS
A1: =COMPANY -> DUKE ENERGY KENTUCKY
A2: =CASE -> CASE NO. 2025-00125
A3: ANNUALIZED REVENUES AT PROPOSED VS. MOST CURRENT RATES
A4: =TIME_PERIOD -> FOR THE TWELVE MONTHS ENDED AUGUST 31, 2025
A5: =SERV_TYPE -> (GAS SERVICE)
A6: =DATA_TYPE -> DATA: _X_ BASE PERIOD ___FORECASTED PERIOD | R6: SCHEDULE M-2.3
A7: =FILING_TYPE -> TYPE OF FILING: _X_ ORIGINAL ___UPDATED ___ REVISED | R7: PAGE 2 OF 7
A8: WORK PAPER REFERENCE NO(S).: | R8: WITNESS:
A9: =TIME -> 6 MOS ACTUAL/6MOS FORECASTED | R9: =WIT -> B. L. Sailers
A10: PROPOSED ANNUALIZED
L12: PROPOSED | N12: % OF REV TO | R12: PROPOSED
L13: REVENUE LESS | N13: TOTAL LESS | R13: TOTAL
A14: LINE | C14: RATE | D14: CLASS / | F14: CUSTOMER | J14: PROPOSED | L14: GAS COST | N14: GAS COST | P14: GAS COST | R14: REVENUE
A15: NO. | C15: CODE | D15: DESCRIPTION | F15: BILLS(1) | H15: SALES(2) | J15: RATES | L15: REVENUE | N15: REVENUE | P15: REVENUE(3) | R15: (F + H)
C16: (A) | D16: (B) | F16: (C) | H16: (D) | J16: (E) | L16: (F) | N16: (G) | P16: (H) | R16: (I)
H18: (MCF) | J18: ($/MCF) | L18: ($) | N18: (%) | P18: ($) | R18: ($)
A19: 1 | C19: RS | D19: RESIDENTIAL
A21: 2 | C21: CUSTOMER CHARGE:
A22: 3 | C22: RESIDENTIAL
A23: 4 | C23: TOTAL MONTHLY BILLS x :
A24: 5 | C24: CUSTOMER CHARGE PER MONTH | F24: 1179108 | J24: =PRO_RS_CUST -> 21 | L24: =ROUND(F24*J24,0) -> 24761268 | N24: =ROUND((L24/$L$39)*100,1) -> 32.3 | R24: =L24+P24 -> 24761268
A26: 6 | C26: COMMODITY CHARGE:
A27: 7 | C27: ALL CONSUMPTION | H27: 6015057 | J27: =PRO_RS_COM -> 7.3613 | L27: =ROUND((H27*J27),0) -> 44278639 | N27: =ROUND((L27/$L$39)*100,1) -> 57.7 | P27: =ROUND(H27*EGC,0) -> 32824166 | R27: =L27+P27 -> 77102805
A29: 8 | C29: RATE RS EXCLUDING RIDERS | F29: =F24 -> 1179108 | H29: =H27 -> 6015057 | L29: =SUM(L24:L27) -> 69039907 | N29: =ROUND((L29/$L$39)*100,1) -> 90 | P29: =SUM(P24:P27) -> 32824166 | R29: =SUM(R24:R27) -> 101864073
A31: 9 | C31: RIDERS:
A32: 10 | C32: HOME ENERGY ASSISTANCE PROGRAM (HEA) | J32: =PRO_RS_HEA -> 0.3 | L32: =ROUND(F24*PRO_RS_HEA,0) -> 353732 | N32: =ROUND((L32/$L$39)*100,1) -> 0.5 | R32: =L32+P32 -> 353732
A33: 11 | C33: DEMAND SIDE MANAGEMENT RATE (DSMR) | J33: =PRO_RS_DSM -> 0.01249 | L33: =ROUND(H27*J33,0) -> 75128 | N33: =ROUND((L33/$L$39)*100,1)+0.1 -> 0.2 | R33: =L33+P33 -> 75128
A34: 12 | C34: WEATHER NORMALIZATION ADJUSTMENT (WNA) | J34: 0 | L34: =ROUND(H29*J34,0) -> 0 | N34: =ROUND((L34/$L$39)*100,1) -> 0 | R34: =L34+P34 -> 0
A35: 13 | C35: PIPELINE MODERNIZATION MECHANISM (PMM) | J35: =PRO_RS_PMM -> 1.2 | L35: =ROUND(H29*J35,0) -> 7218068 | N35: =ROUND((L35/$L$39)*100,1) -> 9.4 | R35: =L35+P35 -> 7218068
A37: 14 | C37: TOTAL RIDERS | L37: =SUM(L32:L35) -> 7646928 | N37: =ROUND((L37/$L$39)*100,1) -> 10 | R37: =SUM(R32:R35) -> 7646928
A39: 15 | C39: TOTAL RATE RS RESIDENTIAL INCLUDING RIDERS | F39: =F24 -> 1179108 | H39: =H27 -> 6015057 | L39: =L29+L37 -> 76686835 | N39: =SUM(N29+N37) -> 100 | P39: =P29+P37 -> 32824166 | R39: =R29+R37 -> 109511001
C41: (1) BILLS THAT TERMINATE IN RESPECTIVE RATE STEPS.
C42: (2) REFLECTS NORMALIZED VOLUMES.
C43: ="(3) REFLECTS AVERAGE EXPECTED GAS COST OF "&TEXT(EGC,"$0.000")&"/MCF." -> (3) REFLECTS AVERAGE EXPECTED GAS COST OF $5.457/MCF. | T43: =COMPANY -> DUKE ENERGY KENTUCKY
T44: =CASE -> CASE NO. 2025-00125
T45: ANNUALIZED TEST YEAR REVENUES AT PROPOSED VS. MOST CURRENT RATES
T46: =TIME_PERIOD -> FOR THE TWELVE MONTHS ENDED AUGUST 31, 2025
T47: =SERV_TYPE -> (GAS SERVICE)
T48: =DATA_TYPE -> DATA: _X_ BASE PERIOD ___FORECASTED PERIOD | AN48: SCHEDULE M-2.2
T49: =FILING_TYPE -> TYPE OF FILING: _X_ ORIGINAL ___UPDATED ___ REVISED | AN49: =R7 -> PAGE 2 OF 7
T50: WORK PAPER REFERENCE NO(S).: | AN50: WITNESS:
T51: =TIME -> 6 MOS ACTUAL/6MOS FORECASTED | AN51: =WIT -> B. L. Sailers
AD52: CURRENT ANNUALIZED
AD54: CURRENT | AF54: % OF REV TO | AH54: REVENUE | AJ54: % INCR IN | AN54: CURRENT | AP54: TOTAL
AB55: MOST | AD55: REVENUE LESS | AF55: TOTAL LESS | AH55: INCR LESS | AJ55: REV LESS | AN55: TOTAL | AP55: REVENUE
T56: LINE | V56: RATE | W56: CLASS / | X56: CUSTOMER | AB56: CURRENT | AD56: GAS COST | AF56: GAS COST | AH56: GAS COST REV | AJ56: GAS COST REV | AL56: GAS COST | AN56: REVENUE | AP56: % INCREASE
T57: NO. | V57: CODE | W57: DESCRIPTION | X57: BILLS(1) | Z57: SALES(2) | AB57: RATES | AD57: REVENUE | AF57: REVENUE | AH57: (F - K) | AJ57: (M / K) | AL57: REVENUE(3) | AN57: (K + H) | AP57: (M / K1)
V58: (A) | W58: (B) | X58: (C) | Z58: (D) | AB58: (J) | AD58: (K) | AF58: (L) | AH58: (M) | AJ58: (N) | AL58: (H) | AN58: (K1) | AP58: (O)
Z60: (MCF) | AB60: ($/MCF) | AD60: ($) | AF60: (%) | AH60: ($) | AJ60: (%) | AL60: ($) | AN60: ($) | AP60: (%)
T61: 1 | V61: RS | W61: RESIDENTIAL
T63: 2 | V63: CUSTOMER CHARGE:
T64: 3 | V64: RESIDENTIAL
T65: 4 | V65: TOTAL MONTHLY BILLS x :
T66: 5 | V66: CUSTOMER CHARGE PER MONTH | X66: =F24 -> 1179108 | AB66: =CUR_RS_CUST -> 17.5 | AD66: =ROUND(X66*AB66,0) -> 20634390 | AF66: =ROUND((AD66/$AD$81)*100,1) -> 34.5 | AH66: =L24-AD66 -> 4126878 | AJ66: =IF(AD66=0,"0.0 ",ROUND((AH66/AD66)*100,1)) -> 20 | AN66: =AD66+AL66 -> 20634390 | AP66: =IF(AN66=0,"0.0 ",ROUND((AH66/AN66)*100,1)) -> 20
T68: 6 | V68: COMMODITY CHARGE:
T69: 7 | V69: ALL CONSUMPTION | Z69: =H27 -> 6015057 | AB69: =CUR_RS -> 5.2474 | AD69: =ROUND((Z69*AB69),0) -> 31563410 | AF69: =ROUND((AD69/$AD$81)*100,1) -> 52.7 | AH69: =L27-AD69 -> 12715229 | AJ69: =IF(AD69=0,"0.0 ",ROUND((AH69/AD69)*100,1)) -> 40.3 | AL69: =P27 -> 32824166 | AN69: =AD69+AL69 -> 64387576 | AP69: =IF(AN69=0,"0.0 ",ROUND((AH69/AN69)*100,1)) -> 19.7
T71: 8 | V71: RATE RS EXCLUDING RIDERS | X71: =X66 -> 1179108 | Z71: =Z69 -> 6015057 | AD71: =SUM(AD66:AD69) -> 52197800 | AF71: =ROUND((AD71/$AD$81)*100,1) -> 87.2 | AH71: =SUM(AH66:AH69) -> 16842107 | AJ71: =IF(AD71=0,"0.0 ",ROUND((AH71/AD71)*100,1)) -> 32.3 | AL71: =SUM(AL66:AL69) -> 32824166 | AN71: =SUM(AN66:AN69) -> 85021966 | AP71: =IF(AN71=0,"0.0 ",ROUND((AH71/AN71)*100,1)) -> 19.8
T73: 9 | V73: RIDERS:
T74: 10 | V74: HOME ENERGY ASSISTANCE PROGRAM (HEA) | AB74: =CUR_RS_HEA -> 0.3 | AD74: =ROUND(X66*CUR_RS_HEA,0) -> 353732 | AF74: =ROUND((AD74/$AD$81)*100,1) -> 0.6 | AH74: =L32-AD74 -> 0 | AJ74: =IF(AD74=0,"0.0 ",ROUND((AH74/AD74)*100,1)) -> 0 | AN74: =AD74+AL74 -> 353732 | AP74: =IF(AN74=0,"0.0 ",ROUND((AH74/AN74)*100,1)) -> 0
T75: 11 | V75: DEMAND SIDE MANAGEMENT RATE (DSMR) | AB75: =CUR_RS_DSM -> 0.01249 | AD75: =ROUND(Z69*AB75,0) -> 75128 | AF75: =ROUND((AD75/$AD$81)*100,1) -> 0.1 | AH75: =L33-AD75 -> 0 | AJ75: =IF(AD75=0,"0.0 ",ROUND((AH75/AD75)*100,1)) -> 0 | AN75: =AD75+AL75 -> 75128 | AP75: =IF(AN75=0,"0.0 ",ROUND((AH75/AN75)*100,1)) -> 0
T76: =A34 -> 12 | V76: WEATHER NORMALIZATION ADJUSTMENT (WNA) | AB76: 0 | AD76: =ROUND(Z71*AB76,0) -> 0 | AF76: =ROUND((AD76/$AD$81)*100,1) -> 0 | AH76: =L34-AD76 -> 0 | AJ76: =IF(AD76=0,"0.0 ",ROUND((AH76/AD76)*100,1)) -> 0.0 | AN76: =AD76+AL76 -> 0 | AP76: =IF(AN76=0,"0.0 ",ROUND((AH76/AN76)*100,1)) -> 0.0
T77: 13 | V77: PIPELINE MODERNIZATION MECHANISM (PMM) | AB77: =CUR_RS_PMM -> 1.2 | AD77: =ROUND(Z71*AB77,0) -> 7218068 | AF77: =ROUND((AD77/$AD$81)*100,1) -> 12.1 | AH77: =L35-AD77 -> 0 | AJ77: 0 | AN77: 7218068 | AP77: 0
T79: =A37 -> 14 | V79: TOTAL RIDERS | AD79: =SUM(AD74:AD77) -> 7646928 | AF79: =ROUND((AD79/$AD$81)*100,1) -> 12.8 | AH79: =SUM(AH74:AH77) -> 0 | AJ79: =IF(AD79=0,"0.0 ",ROUND((AH79/AD79)*100,1)) -> 0 | AN79: =SUM(AN74:AN77) -> 7646928 | AP79: =IF(AN79=0,"0.0 ",ROUND((AH79/AN79)*100,1)) -> 0
T81: =A39 -> 15 | V81: TOTAL RATE RS RESIDENTIAL INCLUDING RIDERS | X81: =X66 -> 1179108 | Z81: =Z69 -> 6015057 | AD81: =AD71+AD79 -> 59844728 | AF81: =SUM(AF71+AF79) -> 100 | AH81: =AH71+AH79 -> 16842107 | AJ81: =IF(AD81=0,"0.0 ",ROUND((AH81/AD81)*100,1)) -> 28.1 | AL81: =P39 -> 32824166 | AN81: =AN71+AN79 -> 92668894 | AP81: =IF(AN81=0,"0.0 ",ROUND((AH81/AN81)*100,1)) -> 18.2
V83: (1) BILLS THAT TERMINATE IN RESPECTIVE RATE STEPS.
V84: (2) REFLECTS NORMALIZED VOLUMES.
V85: ="(3) REFLECTS AVERAGE EXPECTED GAS COST OF "&TEXT(EGC,"$0.000")&"/MCF." -> (3) REFLECTS AVERAGE EXPECTED GAS COST OF $5.457/MCF.

Sheet Rate GS COM
A1: =COMPANY -> DUKE ENERGY KENTUCKY
A2: =CASE -> CASE NO. 2025-00125
A3: ANNUALIZED REVENUES AT PROPOSED VS. MOST CURRENT RATES
A4: =TIME_PERIOD -> FOR THE TWELVE MONTHS ENDED AUGUST 31, 2025
A5: =SERV_TYPE -> (GAS SERVICE)
A6: =DATA_TYPE -> DATA: _X_ BASE PERIOD ___FORECASTED PERIOD | R6: SCHEDULE M-2.3
A7: =FILING_TYPE -> TYPE OF FILING: _X_ ORIGINAL ___UPDATED ___ REVISED | R7: PAGE 3 OF 7
A8: WORK PAPER REFERENCE NO(S).: | R8: WITNESS:
A9: =TIME -> 6 MOS ACTUAL/6MOS FORECASTED | R9: =WIT -> B. L. Sailers
A10: PROPOSED ANNUALIZED
L12: PROPOSED | N12: % OF REV TO | R12: PROPOSED
L13: REVENUE LESS | N13: TOTAL LESS | R13: TOTAL
A14: LINE | C14: RATE | D14: CLASS / | F14: CUSTOMER | J14: PROPOSED | L14: GAS COST | N14: GAS COST | P14: GAS COST | R14: REVENUE
A15: NO. | C15: CODE | D15: DESCRIPTION | F15: BILLS(1) | H15: SALES(2) | J15: RATES | L15: REVENUE | N15: REVENUE | P15: REVENUE(3) | R15: (F + H)
C16: (A) | D16: (B) | F16: (C) | H16: (D) | J16: (E) | L16: (F) | N16: (G) | P16: (H) | R16: (I)
H18: (MCF) | J18: ($/MCF) | L18: ($) | N18: (%) | P18: ($) | R18: ($)
A19: 1 | C19: GS | D19: COMMERCIAL
A21: 2 | C21: CUSTOMER CHARGE:
A22: 3 | C22: NON-RESIDENTIAL
A23: 4 | C23: TOTAL MONTHLY BILLS x :
A24: 5 | C24: CUSTOMER CHARGE PER MONTH | F24: 80294 | J24: =PRO_GS_CUST -> 65 | L24: =ROUND(F24*J24,0) -> 5219110 | N24: =ROUND((L24/$L$38)*100,1) -> 21.8 | R24: =L24+P24 -> 5219110
A26: 6 | C26: COMMODITY CHARGE:
A27: 7 | C27: ALL CONSUMPTION | H27: 3005703 | J27: =PRO_GS -> 5.928 | L27: =ROUND((H27*J27),0) -> 17817807 | N27: =ROUND((L27/$L$38)*100,1) -> 74.4 | P27: =ROUND(H27*EGC,0) -> 16402121 | R27: =L27+P27 -> 34219928
A29: 8 | C29: RATE GS COMMERCIAL EXCLUDING RIDERS | F29: =F24 -> 80294 | H29: =H27 -> 3005703 | L29: =SUM(L24:L27) -> 23036917 | N29: =ROUND((L29/$L$38)*100,1) -> 96.2 | P29: =SUM(P24:P27) -> 16402121 | R29: =SUM(R24:R27) -> 39439038
A31: 9 | C31: RIDERS:
A32: 10 | C32: DEMAND SIDE MANAGEMENT RATE (DSMR) | J32: =PRO_GS_DSM -> 0 | L32: =ROUND(H27*J32,0) -> 0 | N32: =ROUND((L32/$L$38)*100,1) -> 0 | R32: =L32+P32 -> 0
A33: 11 | C33: WEATHER NORMALIZATION ADJUSTMENT (WNA) | J33: 0 | L33: =ROUND(H29*J33,0) -> 0 | N33: =ROUND((L33/$L$38)*100,1) -> 0 | R33: =L33+P33 -> 0
A34: 12 | C34: PIPELINE MODERNIZATION MECHANISM (PMM) | J34: 0.3 | L34: =ROUND(H29*J34,0) -> 901711 | N34: =ROUND((L34/$L$38)*100,1) -> 3.8 | R34: =L34+P34 -> 901711
A36: 13 | C36: TOTAL RIDERS | L36: =SUM(L31:L34) -> 901711 | N36: =ROUND((L36/$L$38)*100,1) -> 3.8 | R36: =SUM(R31:R34) -> 901711
A38: 14 | C38: TOTAL RATE GS COMMERCIAL INCLUDING RIDERS | F38: =F24 -> 80294 | H38: =H27 -> 3005703 | L38: =L29+L36 -> 23938628 | N38: =N29+N36 -> 100 | P38: =P29+P36 -> 16402121 | R38: =R29+R36 -> 40340749
C40: (1) BILLS THAT TERMINATE IN RESPECTIVE RATE STEPS.
C41: (2) REFLECTS NORMALIZED VOLUMES.
C42: ="(3) REFLECTS AVERAGE EXPECTED GAS COST OF "&TEXT(EGC,"$0.000")&"/MCF." -> (3) REFLECTS AVERAGE EXPECTED GAS COST OF $5.457/MCF. | T42: =COMPANY -> DUKE ENERGY KENTUCKY
T43: =CASE -> CASE NO. 2025-00125
T44: ANNUALIZED TEST YEAR REVENUES AT PROPOSED VS. MOST CURRENT RATES
T45: =TIME_PERIOD -> FOR THE TWELVE MONTHS ENDED AUGUST 31, 2025
T46: =SERV_TYPE -> (GAS SERVICE)
T47: =DATA_TYPE -> DATA: _X_ BASE PERIOD ___FORECASTED PERIOD | AN47: SCHEDULE M-2.2
T48: =FILING_TYPE -> TYPE OF FILING: _X_ ORIGINAL ___UPDATED ___ REVISED | AN48: =R7 -> PAGE 3 OF 7
T49: WORK PAPER REFERENCE NO(S).: | AN49: WITNESS:
T50: =TIME -> 6 MOS ACTUAL/6MOS FORECASTED | AN50: =WIT -> B. L. Sailers
AD51: CURRENT ANNUALIZED
AD53: CURRENT | AF53: % OF REV TO | AH53: REVENUE | AJ53: % INCR IN | AN53: CURRENT | AP53: TOTAL
AB54: MOST | AD54: REVENUE LESS | AF54: TOTAL LESS | AH54: INCR LESS | AJ54: REV LESS | AN54: TOTAL | AP54: REVENUE
T55: LINE | V55: RATE | W55: CLASS / | X55: CUSTOMER | AB55: CURRENT | AD55: GAS COST | AF55: GAS COST | AH55: GAS COST REV | AJ55: GAS COST REV | AL55: GAS COST | AN55: REVENUE | AP55: % INCREASE
T56: NO. | V56: CODE | W56: DESCRIPTION | X56: BILLS(1) | Z56: SALES(2) | AB56: RATES | AD56: REVENUE | AF56: REVENUE | AH56: (F - K) | AJ56: (M / K) | AL56: REVENUE(3) | AN56: (K + H) | AP56: (M / K1)
V57: (A) | W57: (B) | X57: (C) | Z57: (D) | AB57: (J) | AD57: (K) | AF57: (L) | AH57: (M) | AJ57: (N) | AL57: (H) | AN57: (K1) | AP57: (O)
Z59: (MCF) | AB59: ($/MCF) | AD59: ($) | AF59: (%) | AH59: ($) | AJ59: (%) | AL59: ($) | AN59: ($) | AP59: (%)
T60: 1 | V60: GS | W60: COMMERCIAL
T62: 2 | V62: CUSTOMER CHARGE:
T63: 3 | V63: NON-RESIDENTIAL
T64: 4 | V64: TOTAL MONTHLY BILLS x :
T65: 5 | V65: CUSTOMER CHARGE PER MONTH | X65: =F24 -> 80294 | AB65: =CUR_GS_CUST -> 58 | AD65: =ROUND(X65*AB65,0) -> 4657052 | AF65: =ROUND((AD65/$AD$79)*100,1) -> 27.7 | AH65: =L24-AD65 -> 562058 | AJ65: =IF(AD65=0,"0.0 ",ROUND((AH65/AD65)*100,1)) -> 12.1 | AN65: =AD65+AL65 -> 4657052 | AP65: =IF(AN65=0,"0.0 ",ROUND((AH65/AN65)*100,1)) -> 12.1
T67: 6 | V67: COMMODITY CHARGE:
T68: 7 | V68: ALL CONSUMPTION | Z68: =H27 -> 3005703 | AB68: =CUR_GS -> 3.7443 | AD68: =ROUND((Z68*AB68),0) -> 11254254 | AF68: =ROUND((AD68/$AD$79)*100,1) -> 66.9 | AH68: =L27-AD68 -> 6563553 | AJ68: =IF(AD68=0,"0.0 ",ROUND((AH68/AD68)*100,1)) -> 58.3 | AL68: =P27 -> 16402121 | AN68: =AD68+AL68 -> 27656375 | AP68: =IF(AN68=0,"0.0 ",ROUND((AH68/AN68)*100,1)) -> 23.7
T70: 8 | V70: RATE GS COMMERCIAL EXCLUDING RIDERS | X70: =X65 -> 80294 | Z70: =Z68 -> 3005703 | AD70: =SUM(AD65:AD68) -> 15911306 | AF70: =ROUND((AD70/$AD$79)*100,1) -> 94.6 | AH70: =SUM(AH65:AH68) -> 7125611 | AJ70: =IF(AD70=0,"0.0 ",ROUND((AH70/AD70)*100,1)) -> 44.8 | AL70: =SUM(AL65:AL68) -> 16402121 | AN70: =SUM(AN65:AN68) -> 32313427 | AP70: =IF(AN70=0,"0.0 ",ROUND((AH70/AN70)*100,1)) -> 22.1
T72: 9 | V72: RIDERS:
T73: 10 | V73: =C32 -> DEMAND SIDE MANAGEMENT RATE (DSMR) | AB73: =CUR_GS_DSM -> 0 | AD73: =ROUND(Z68*AB73,0) -> 0 | AF73: =ROUND((AD73/$AD$79)*100,1) -> 0 | AH73: =L32-AD73 -> 0 | AJ73: =IF(AD73=0,"0.0 ",ROUND((AH73/AD73)*100,1)) -> 0.0 | AN73: =AD73+AL73 -> 0 | AP73: =IF(AN73=0,"0.0 ",ROUND((AH73/AN73)*100,1)) -> 0.0
T74: =A33 -> 11 | V74: WEATHER NORMALIZATION ADJUSTMENT (WNA) | AB74: 0 | AD74: =ROUND(Z70*AB74,0) -> 0 | AF74: =ROUND((AD74/$AD$79)*100,1) -> 0 | AH74: =L33-AD74 -> 0 | AJ74: =IF(AD74=0,"0.0 ",ROUND((AH74/AD74)*100,1)) -> 0.0 | AN74: =AD74+AL74 -> 0 | AP74: =IF(AN74=0,"0.0 ",ROUND((AH74/AN74)*100,1)) -> 0.0
T75: 12 | V75: =C34 -> PIPELINE MODERNIZATION MECHANISM (PMM) | AB75: =CUR_GS_PMM -> 0.3 | AD75: =ROUND(Z70*AB75,0) -> 901711 | AF75: =ROUND((AD75/$AD$79)*100,1) -> 5.4 | AH75: =L34-AD75 -> 0 | AJ75: =IF(AD75=0,"0.0 ",ROUND((AH75/AD75)*100,1)) -> 0 | AN75: =AD75+AL75 -> 901711 | AP75: =IF(AN75=0,"0.0 ",ROUND((AH75/AN75)*100,1)) -> 0
T77: =A36 -> 13 | V77: TOTAL RIDERS | AD77: =SUM(AD72:AD75) -> 901711 | AF77: =ROUND((AD77/$AD$79)*100,1) -> 5.4 | AH77: =SUM(AH72:AH75) -> 0 | AJ77: =IF(AD77=0,"0.0 ",ROUND((AH77/AD77)*100,1)) -> 0 | AN77: =SUM(AN72:AN75) -> 901711 | AP77: =IF(AN77=0,"0.0 ",ROUND((AH77/AN77)*100,1)) -> 0
T79: =A38 -> 14 | V79: TOTAL RATE GS COMMERCIAL INCLUDING RIDERS | X79: =X65 -> 80294 | Z79: =Z68 -> 3005703 | AD79: =AD70+AD77 -> 16813017 | AF79: =AF77+AF70 -> 100 | AH79: =AH70+AH77 -> 7125611 | AJ79: =IF(AD79=0,"0.0 ",ROUND((AH79/AD79)*100,1)) -> 42.4 | AL79: =P38 -> 16402121 | AN79: =AN70+AN77 -> 33215138 | AP79: =IF(AN79=0,"0.0 ",ROUND((AH79/AN79)*100,1)) -> 21.5
V81: (1) BILLS THAT TERMINATE IN RESPECTIVE RATE STEPS.
V82: (2) REFLECTS NORMALIZED VOLUMES.
V83: ="(3) REFLECTS AVERAGE EXPECTED GAS COST OF "&TEXT(EGC,"$0.000")&"/MCF." -> (3) REFLECTS AVERAGE EXPECTED GAS COST OF $5.457/MCF.
Z200: *** MENU ***
X202: ROUTINE | AD202: ENTER
X203: - | AD203: -
W204: PRINT SCHEDULES E-4 and E-4.1 | AD204: ALT A
W206: PRINT SCHEDULE E-5 | AD206: ALT B
W208: SAVE FILE | X208: (NOTE: MUST USE WHEN SAVING FILE) | AD208: ALT S
W210: GO TO MENU | AD210: ALT M
W212: RANGE NAME INDEX | AD212: ALT I

Sheet Rate GS IND
A1: =COMPANY -> DUKE ENERGY KENTUCKY
A2: =CASE -> CASE NO. 2025-00125
A3: ANNUALIZED REVENUES AT PROPOSED VS. MOST CURRENT RATES
A4: =TIME_PERIOD -> FOR THE TWELVE MONTHS ENDED AUGUST 31, 2025
A5: =SERV_TYPE -> (GAS SERVICE)
A6: =DATA_TYPE -> DATA: _X_ BASE PERIOD ___FORECASTED PERIOD | R6: SCHEDULE M-2.3
A7: =FILING_TYPE -> TYPE OF FILING: _X_ ORIGINAL ___UPDATED ___ REVISED | R7: PAGE 4 OF 7
A8: WORK PAPER REFERENCE NO(S).: | R8: WITNESS:
A9: =TIME -> 6 MOS ACTUAL/6MOS FORECASTED | R9: =WIT -> B. L. Sailers
A10: PROPOSED ANNUALIZED
L12: PROPOSED | N12: % OF REV TO | R12: PROPOSED
L13: REVENUE LESS | N13: TOTAL LESS | R13: TOTAL
A14: LINE | C14: RATE | D14: CLASS / | F14: CUSTOMER | J14: PROPOSED | L14: GAS COST | N14: GAS COST | P14: GAS COST | R14: REVENUE
A15: NO. | C15: CODE | D15: DESCRIPTION | F15: BILLS(1) | H15: SALES(2) | J15: RATES | L15: REVENUE | N15: REVENUE | P15: REVENUE(3) | R15: (F + H)
C16: (A) | D16: (B) | F16: (C) | H16: (D) | J16: (E) | L16: (F) | N16: (G) | P16: (H) | R16: (I)
H18: (MCF) | J18: ($/MCF) | L18: ($) | N18: (%) | P18: ($) | R18: ($)
A19: 1 | C19: GS | D19: INDUSTRIAL
A21: 2 | C21: CUSTOMER CHARGE:
A22: 3 | C22: NON-RESIDENTIAL
A23: 4 | C23: TOTAL MONTHLY BILLS x :
A24: 5 | C24: CUSTOMER CHARGE PER MONTH | F24: 1942 | J24: =PRO_GS_CUST -> 65 | L24: =ROUND(F24*J24,0) -> 126230 | N24: =ROUND((L24/$L$38)*100,1) -> 10.3 | R24: =L24+P24 -> 126230
A26: 6 | C26: COMMODITY CHARGE:
A27: 7 | C27: ALL CONSUMPTION | H27: 177195 | J27: =PRO_GS -> 5.928 | L27: =ROUND((H27*J27),0) -> 1050412 | N27: =ROUND((L27/$L$38)*100,1) -> 85.4 | P27: =ROUND(EGC*$H27,0) -> 966953 | R27: =L27+P27 -> 2017365
A29: 8 | C29: RATE GS INDUSTRIAL EXCLUDING RIDERS | F29: =F24 -> 1942 | H29: =H27 -> 177195 | L29: =SUM(L24:L27) -> 1176642 | N29: =ROUND((L29/$L$38)*100,1) -> 95.7 | P29: =SUM(P24:P27) -> 966953 | R29: =SUM(R24:R27) -> 2143595
A31: 9 | C31: RIDERS:
A32: 10 | C32: DEMAND SIDE MANAGEMENT RATE (DSMR) | J32: =PRO_GS_DSM -> 0 | L32: =ROUND(H27*J32,0) -> 0 | N32: =ROUND((L32/$L$38)*100,1) -> 0 | R32: =L32+P32 -> 0
A33: 11 | C33: WEATHER NORMALIZATION ADJUSTMENT (WNA) | J33: 0 | L33: =ROUND(H29*J33,0) -> 0 | N33: =ROUND((L33/$L$38)*100,1) -> 0 | R33: =L33+P33 -> 0
A34: 12 | C34: PIPELINE MODERNIZATION MECHANISM (PMM) | J34: 0.3 | L34: =ROUND(H29*J34,0) -> 53159 | N34: =ROUND((L34/$L$38)*100,1) -> 4.3 | R34: =L34+P34 -> 53159
A36: 13 | C36: TOTAL RIDERS | L36: =SUM(L31:L34) -> 53159 | N36: =ROUND((L36/$L$38)*100,1) -> 4.3 | R36: =SUM(R31:R34) -> 53159
A38: 14 | C38: TOTAL RATE GS INDUSTRIAL INCLUDING RIDERS | F38: =F24 -> 1942 | H38: =H27 -> 177195 | L38: =L29+L36 -> 1229801 | N38: =N29+N36 -> 100 | P38: =P29+P36 -> 966953 | R38: =R29+R36 -> 2196754
C40: (1) BILLS THAT TERMINATE IN RESPECTIVE RATE STEPS.
C41: (2) REFLECTS NORMALIZED VOLUMES.
C42: ="(3) REFLECTS AVERAGE EXPECTED GAS COST OF "&TEXT(EGC,"$0.000")&"/MCF." -> (3) REFLECTS AVERAGE EXPECTED GAS COST OF $5.457/MCF.
T47: =COMPANY -> DUKE ENERGY KENTUCKY
T48: =CASE -> CASE NO. 2025-00125
T49: ANNUALIZED TEST YEAR REVENUES AT PROPOSED VS. MOST CURRENT RATES
T50: =TIME_PERIOD -> FOR THE TWELVE MONTHS ENDED AUGUST 31, 2025
T51: =SERV_TYPE -> (GAS SERVICE)
T52: =DATA_TYPE -> DATA: _X_ BASE PERIOD ___FORECASTED PERIOD | AN52: SCHEDULE M-2.2
T53: =FILING_TYPE -> TYPE OF FILING: _X_ ORIGINAL ___UPDATED ___ REVISED | AN53: =R7 -> PAGE 4 OF 7
T54: WORK PAPER REFERENCE NO(S).: | AN54: WITNESS:
T55: =TIME -> 6 MOS ACTUAL/6MOS FORECASTED | AN55: =WIT -> B. L. Sailers
T56: CURRENT ANNUALIZED
AD58: CURRENT | AF58: % OF REV TO | AH58: REVENUE | AJ58: % INCR IN | AN58: CURRENT | AP58: TOTAL
AB59: MOST | AD59: REVENUE LESS | AF59: TOTAL LESS | AH59: INCR LESS | AJ59: REV LESS | AN59: TOTAL | AP59: REVENUE
T60: LINE | V60: RATE | W60: CLASS / | X60: CUSTOMER | AB60: CURRENT | AD60: GAS COST | AF60: GAS COST | AH60: GAS COST REV | AJ60: GAS COST REV | AL60: GAS COST | AN60: REVENUE | AP60: % INCREASE
T61: NO. | V61: CODE | W61: DESCRIPTION | X61: BILLS(1) | Z61: SALES(2) | AB61: RATES | AD61: REVENUE | AF61: REVENUE | AH61: (F - K) | AJ61: (M / K) | AL61: REVENUE(3) | AN61: (K + H) | AP61: (M / K1)
V62: (A) | W62: (B) | X62: (C) | Z62: (D) | AB62: (J) | AD62: (K) | AF62: (L) | AH62: (M) | AJ62: (N) | AL62: (H) | AN62: (K1) | AP62: (O)
Z64: (MCF) | AB64: ($/MCF) | AD64: ($) | AF64: (%) | AH64: ($) | AJ64: (%) | AL64: ($) | AN64: ($) | AP64: (%)
T65: 1 | V65: GS | W65: INDUSTRIAL
T67: 2 | V67: CUSTOMER CHARGE:
T68: 3 | V68: NON-RESIDENTIAL
T69: 4 | V69: TOTAL MONTHLY BILLS x :
T70: 5 | V70: CUSTOMER CHARGE PER MONTH | X70: =F24 -> 1942 | AB70: =CUR_GS_CUST -> 58 | AD70: =ROUND(X70*AB70,0) -> 112636 | AF70: =ROUND((AD70/$AD$84)*100,1) -> 13.6 | AH70: =L24-AD70 -> 13594 | AJ70: =IF(AD70=0,"0.0 ",ROUND((AH70/AD70)*100,1)) -> 12.1 | AN70: =AD70+AL70 -> 112636 | AP70: =IF(AN70=0,"0.0 ",ROUND((AH70/AN70)*100,1)) -> 12.1
T72: 6 | V72: COMMODITY CHARGE:
T73: 7 | V73: ALL CONSUMPTION | Z73: =H27 -> 177195 | AB73: =CUR_GS -> 3.7443 | AD73: =ROUND((Z73*AB73),0) -> 663471 | AF73: =ROUND((AD73/$AD$84)*100,1) -> 80 | AH73: =L27-AD73 -> 386941 | AJ73: =IF(AD73=0,"0.0 ",ROUND((AH73/AD73)*100,1)) -> 58.3 | AL73: =P27 -> 966953 | AN73: =AD73+AL73 -> 1630424 | AP73: =IF(AN73=0,"0.0 ",ROUND((AH73/AN73)*100,1)) -> 23.7
T75: 8 | V75: RATE GS INDUSTRIAL EXCLUDING RIDERS | X75: =X70 -> 1942 | Z75: =Z73 -> 177195 | AD75: =SUM(AD70:AD73) -> 776107 | AF75: =ROUND((AD75/$AD$84)*100,1) -> 93.6 | AH75: =SUM(AH70:AH73) -> 400535 | AJ75: =IF(AD75=0,"0.0 ",ROUND((AH75/AD75)*100,1)) -> 51.6 | AL75: =SUM(AL70:AL73) -> 966953 | AN75: =SUM(AN70:AN73) -> 1743060 | AP75: =IF(AN75=0,"0.0 ",ROUND((AH75/AN75)*100,1)) -> 23
T77: 9 | V77: RIDERS:
T78: 10 | V78: =C38 -> TOTAL RATE GS INDUSTRIAL INCLUDING RIDERS | AB78: =CUR_GS_DSM -> 0 | AD78: =ROUND(Z73*AB78,0) -> 0 | AF78: =ROUND((AD78/$AD$84)*100,1) -> 0 | AH78: =L32-AD78 -> 0 | AJ78: =IF(AD78=0,"0.0 ",ROUND((AH78/AD78)*100,1)) -> 0.0 | AN78: =AD78+AL78 -> 0 | AP78: =IF(AN78=0,"0.0 ",ROUND((AH78/AN78)*100,1)) -> 0.0
T79: =A33 -> 11 | V79: WEATHER NORMALIZATION ADJUSTMENT (WNA) | AB79: 0 | AD79: =ROUND(Z75*AB79,0) -> 0 | AF79: =ROUND((AD79/$AD$84)*100,1) -> 0 | AH79: =L33-AD79 -> 0 | AJ79: =IF(AD79=0,"0.0 ",ROUND((AH79/AD79)*100,1)) -> 0.0 | AN79: =AD79+AL79 -> 0 | AP79: =IF(AN79=0,"0.0 ",ROUND((AH79/AN79)*100,1)) -> 0.0
T80: 12 | V80: PIPELINE MODERNIZATION MECHANISM (PMM) | AB80: =CUR_GS_PMM -> 0.3 | AD80: =ROUND(Z75*AB80,0) -> 53159 | AF80: =ROUND((AD80/$AD$84)*100,1) -> 6.4 | AH80: =L34-AD80 -> 0 | AJ80: =IF(AD80=0,"0.0 ",ROUND((AH80/AD80)*100,1)) -> 0 | AN80: =AD80+AL80 -> 53159 | AP80: =IF(AN80=0,"0.0 ",ROUND((AH80/AN80)*100,1)) -> 0
T82: =A36 -> 13 | V82: TOTAL RIDERS | AD82: =SUM(AD77:AD80) -> 53159 | AF82: =ROUND((AD82/$AD$84)*100,1) -> 6.4 | AH82: =SUM(AH77:AH80) -> 0 | AJ82: =IF(AD82=0,"0.0 ",ROUND((AH82/AD82)*100,1)) -> 0 | AN82: =SUM(AN77:AN80) -> 53159 | AP82: =IF(AN82=0,"0.0 ",ROUND((AH82/AN82)*100,1)) -> 0
T84: =A38 -> 14 | V84: TOTAL RATE GS INDUSTRIAL INCLUDING RIDERS | X84: =X70 -> 1942 | Z84: =Z73 -> 177195 | AD84: =AD75+AD82 -> 829266 | AF84: =AF75+AF82 -> 100 | AH84: =AH75+AH82 -> 400535 | AJ84: =IF(AD84=0,"0.0 ",ROUND((AH84/AD84)*100,1)) -> 48.3 | AL84: =P38 -> 966953 | AN84: =AN75+AN82 -> 1796219 | AP84: =IF(AN84=0,"0.0 ",ROUND((AH84/AN84)*100,1)) -> 22.3
V86: (1) BILLS THAT TERMINATE IN RESPECTIVE RATE STEPS.
V87: (2) REFLECTS NORMALIZED VOLUMES.
V88: ="(3) REFLECTS AVERAGE EXPECTED GAS COST OF "&TEXT(EGC,"$0.000")&"/MCF." -> (3) REFLECTS AVERAGE EXPECTED GAS COST OF $5.457/MCF.

Sheet Rate GS OPA
A1: =COMPANY -> DUKE ENERGY KENTUCKY
A2: =CASE -> CASE NO. 2025-00125
A3: ANNUALIZED REVENUES AT PROPOSED VS. MOST CURRENT RATES
A4: =TIME_PERIOD -> FOR THE TWELVE MONTHS ENDED AUGUST 31, 2025
A5: =SERV_TYPE -> (GAS SERVICE)
A6: =DATA_TYPE -> DATA: _X_ BASE PERIOD ___FORECASTED PERIOD | R6: SCHEDULE M-2.3
A7: =FILING_TYPE -> TYPE OF FILING: _X_ ORIGINAL ___UPDATED ___ REVISED | R7: PAGE 5 OF 7
A8: WORK PAPER REFERENCE NO(S).: | R8: WITNESS:
A9: =TIME -> 6 MOS ACTUAL/6MOS FORECASTED | R9: =WIT -> B. L. Sailers
A10: PROPOSED ANNUALIZED
L12: PROPOSED | N12: % OF REV TO | R12: PROPOSED
L13: REVENUE LESS | N13: TOTAL LESS | R13: TOTAL
A14: LINE | C14: RATE | D14: CLASS / | F14: CUSTOMER | J14: PROPOSED | L14: GAS COST | N14: GAS COST | P14: GAS COST | R14: REVENUE
A15: NO. | C15: CODE | D15: DESCRIPTION | F15: BILLS(1) | H15: SALES(2) | J15: RATES | L15: REVENUE | N15: REVENUE | P15: REVENUE(3) | R15: (F + H)
C16: (A) | D16: (B) | F16: (C) | H16: (D) | J16: (E) | L16: (F) | N16: (G) | P16: (H) | R16: (I)
H18: (MCF) | J18: ($/MCF) | L18: ($) | N18: (%) | P18: ($) | R18: ($)
A19: 1 | C19: GS | D19: OTHER PUBLIC AUTHORITIES
A21: 2 | C21: CUSTOMER CHARGE:
A22: 3 | C22: NON-RESIDENTIAL
A23: 4 | C23: TOTAL MONTHLY BILLS x :
A24: 5 | C24: CUSTOMER CHARGE PER MONTH | F24: 3432 | J24: =PRO_GS_CUST -> 65 | L24: =ROUND(F24*J24,0) -> 223080 | N24: =ROUND((L24/$L$38)*100,1) -> 15.1 | R24: =L24+P24 -> 223080
A26: 6 | C26: COMMODITY CHARGE:
A27: 7 | C27: ALL CONSUMPTION | H27: 200718 | J27: =PRO_GS -> 5.928 | L27: =ROUND((H27*J27),0) -> 1189856 | N27: =ROUND((L27/$L$38)*100,1) -> 80.8 | P27: =ROUND(EGC*$H27,0) -> 1095318 | R27: =L27+P27 -> 2285174
A29: 8 | C29: RATE GS OPA EXCLUDING RIDERS | F29: =F24 -> 3432 | H29: =H27 -> 200718 | L29: =SUM(L24:L27) -> 1412936 | N29: =ROUND((L29/$L$38)*100,1) -> 95.9 | P29: =SUM(P24:P27) -> 1095318 | R29: =SUM(R24:R27) -> 2508254
A31: 9 | C31: RIDERS:
A32: 10 | C32: DEMAND SIDE MANAGEMENT RATE (DSMR) | J32: =PRO_GS_DSM -> 0 | L32: =ROUND(H27*J32,0) -> 0 | N32: =ROUND((L32/$L$38)*100,1) -> 0 | R32: =L32+P32 -> 0
A33: 11 | C33: WEATHER NORMALIZATION ADJUSTMENT (WNA) | J33: 0 | L33: =ROUND(H29*J33,0) -> 0 | N33: =ROUND((L33/$L$38)*100,1) -> 0 | R33: =L33+P33 -> 0
A34: 12 | C34: PIPELINE MODERNIZATION MECHANISM (PMM) | J34: 0.3 | L34: =ROUND(H29*J34,0) -> 60215 | N34: =ROUND((L34/$L$38)*100,1) -> 4.1 | R34: =L34+P34 -> 60215
A36: 12 | C36: TOTAL RIDERS | L36: =SUM(L31:L34) -> 60215 | N36: =ROUND((L36/$L$38)*100,1) -> 4.1 | R36: =SUM(R31:R34) -> 60215
A38: 13 | C38: TOTAL RATE GS OPA INCLUDING RIDERS | F38: =F24 -> 3432 | H38: =H27 -> 200718 | L38: =L29+L36 -> 1473151 | N38: =SUM(N29+N36) -> 100 | P38: =P29+P36 -> 1095318 | R38: =R29+R36 -> 2568469
C40: (1) BILLS THAT TERMINATE IN RESPECTIVE RATE STEPS.
C41: (2) REFLECTS NORMALIZED VOLUMES.
C42: ="(3) REFLECTS AVERAGE EXPECTED GAS COST OF "&TEXT(EGC,"$0.000")&"/MCF." -> (3) REFLECTS AVERAGE EXPECTED GAS COST OF $5.457/MCF.
T44: =COMPANY -> DUKE ENERGY KENTUCKY
T45: =CASE -> CASE NO. 2025-00125
T46: ANNUALIZED TEST YEAR REVENUES AT PROPOSED VS. MOST CURRENT RATES
T47: =TIME_PERIOD -> FOR THE TWELVE MONTHS ENDED AUGUST 31, 2025
T48: =SERV_TYPE -> (GAS SERVICE)
T49: =DATA_TYPE -> DATA: _X_ BASE PERIOD ___FORECASTED PERIOD | AN49: SCHEDULE M-2.2
T50: =FILING_TYPE -> TYPE OF FILING: _X_ ORIGINAL ___UPDATED ___ REVISED | AN50: =R7 -> PAGE 5 OF 7
T51: WORK PAPER REFERENCE NO(S).: | AN51: WITNESS:
T52: =TIME -> 6 MOS ACTUAL/6MOS FORECASTED | AN52: =WIT -> B. L. Sailers
T53: CURRENT ANNUALIZED
AD55: CURRENT | AF55: % OF REV TO | AH55: REVENUE | AJ55: % INCR IN | AN55: CURRENT | AP55: TOTAL
AB56: MOST | AD56: REVENUE LESS | AF56: TOTAL LESS | AH56: INCR LESS | AJ56: REV LESS | AN56: TOTAL | AP56: REVENUE
T57: LINE | V57: RATE | W57: CLASS / | X57: CUSTOMER | AB57: CURRENT | AD57: GAS COST | AF57: GAS COST | AH57: GAS COST REV | AJ57: GAS COST REV | AL57: GAS COST | AN57: REVENUE | AP57: % INCREASE
T58: NO. | V58: CODE | W58: DESCRIPTION | X58: BILLS(1) | Z58: SALES(2) | AB58: RATES | AD58: REVENUE | AF58: REVENUE | AH58: (F - K) | AJ58: (M / K) | AL58: REVENUE(3) | AN58: (K + H) | AP58: (M / K1)
V59: (A) | W59: (B) | X59: (C) | Z59: (D) | AB59: (J) | AD59: (K) | AF59: (L) | AH59: (M) | AJ59: (N) | AL59: (H) | AN59: (K1) | AP59: (O)
Z61: (MCF) | AB61: ($/MCF) | AD61: ($) | AF61: (%) | AH61: ($) | AJ61: (%) | AL61: ($) | AN61: ($) | AP61: (%)
T62: 1 | V62: GS | W62: OTHER PUBLIC AUTHORITIES
T64: 2 | V64: CUSTOMER CHARGE:
T65: 3 | V65: NON-RESIDENTIAL
T66: 4 | V66: TOTAL MONTHLY BILLS x :
T67: 5 | V67: CUSTOMER CHARGE PER MONTH | X67: =F24 -> 3432 | AB67: =CUR_GS_CUST -> 58 | AD67: =ROUND(X67*AB67,0) -> 199056 | AF67: =ROUND((AD67/$AD$81)*100,1) -> 19.7 | AH67: =L24-AD67 -> 24024 | AJ67: =IF(AD67=0,"0.0 ",ROUND((AH67/AD67)*100,1)) -> 12.1 | AN67: =AD67+AL67 -> 199056 | AP67: =IF(AN67=0,"0.0 ",ROUND((AH67/AN67)*100,1)) -> 12.1
T69: 6 | V69: COMMODITY CHARGE:
T70: 7 | V70: ALL CONSUMPTION | Z70: =H27 -> 200718 | AB70: =CUR_GS -> 3.7443 | AD70: =ROUND((Z70*AB70),0) -> 751548 | AF70: =ROUND((AD70/$AD$81)*100,1) -> 74.4 | AH70: =L27-AD70 -> 438308 | AJ70: =IF(AD70=0,"0.0 ",ROUND((AH70/AD70)*100,1)) -> 58.3 | AL70: =P27 -> 1095318 | AN70: =AD70+AL70 -> 1846866 | AP70: =IF(AN70=0,"0.0 ",ROUND((AH70/AN70)*100,1)) -> 23.7
T72: 8 | V72: RATE GS OPA EXCLUDING RIDERS | X72: =X67 -> 3432 | Z72: =Z70 -> 200718 | AD72: =SUM(AD67:AD70) -> 950604 | AF72: =ROUND((AD72/$AD$81)*100,1) -> 94 | AH72: =SUM(AH67:AH70) -> 462332 | AJ72: =IF(AD72=0,"0.0 ",ROUND((AH72/AD72)*100,1)) -> 48.6 | AL72: =SUM(AL67:AL70) -> 1095318 | AN72: =SUM(AN67:AN70) -> 2045922 | AP72: =IF(AN72=0,"0.0 ",ROUND((AH72/AN72)*100,1)) -> 22.6
T74: 9 | V74: RIDERS:
T75: 10 | V75: DEMAND SIDE MANAGEMENT RATE (DSMR) | AB75: =CUR_GS_DSM -> 0 | AD75: =ROUND(Z70*AB75,0) -> 0 | AF75: =ROUND((AD75/$AD$81)*100,1) -> 0 | AH75: =L32-AD75 -> 0 | AJ75: =IF(AD75=0,"0.0 ",ROUND((AH75/AD75)*100,1)) -> 0.0 | AN75: =AD75+AL75 -> 0 | AP75: =IF(AN75=0,"0.0 ",ROUND((AH75/AN75)*100,1)) -> 0.0
T76: =A33 -> 11 | V76: WEATHER NORMALIZATION ADJUSTMENT (WNA) | AB76: 0 | AD76: =ROUND(Z72*AB76,0) -> 0 | AF76: =ROUND((AD76/$AD$81)*100,1) -> 0 | AH76: =L33-AD76 -> 0 | AJ76: =IF(AD76=0,"0.0 ",ROUND((AH76/AD76)*100,1)) -> 0.0 | AN76: =AD76+AL76 -> 0 | AP76: =IF(AN76=0,"0.0 ",ROUND((AH76/AN76)*100,1)) -> 0.0
T77: 12 | V77: PIPELINE MODERNIZATION MECHANISM (PMM) | AB77: =CUR_GS_PMM -> 0.3 | AD77: =ROUND(Z72*AB77,0) -> 60215 | AF77: =ROUND((AD77/$AD$81)*100,1) -> 6 | AH77: =L34-AD77 -> 0 | AJ77: =IF(AD77=0,"0.0 ",ROUND((AH77/AD77)*100,1)) -> 0 | AN77: =AD77+AL77 -> 60215 | AP77: =IF(AN77=0,"0.0 ",ROUND((AH77/AN77)*100,1)) -> 0
T79: =A36 -> 12 | V79: TOTAL RIDERS | AD79: =SUM(AD74:AD77) -> 60215 | AF79: =ROUND((AD79/$AD$81)*100,1) -> 6 | AH79: =SUM(AH74:AH77) -> 0 | AJ79: =IF(AD79=0,"0.0 ",ROUND((AH79/AD79)*100,1)) -> 0 | AN79: =SUM(AN74:AN77) -> 60215 | AP79: =IF(AN79=0,"0.0 ",ROUND((AH79/AN79)*100,1)) -> 0
T81: =A38 -> 13 | V81: TOTAL RATE GS OPA INCLUDING RIDERS | X81: =X67 -> 3432 | Z81: =Z70 -> 200718 | AD81: =AD72+AD79 -> 1010819 | AF81: =AF72+AF79 -> 100 | AH81: =AH72+AH79 -> 462332 | AJ81: =IF(AD81=0,"0.0 ",ROUND((AH81/AD81)*100,1)) -> 45.7 | AL81: =P38 -> 1095318 | AN81: =AN72+AN79 -> 2106137 | AP81: =IF(AN81=0,"0.0 ",ROUND((AH81/AN81)*100,1)) -> 22
V83: (1) BILLS THAT TERMINATE IN RESPECTIVE RATE STEPS.
V84: (2) REFLECTS NORMALIZED VOLUMES.
V85: ="(3) REFLECTS AVERAGE EXPECTED GAS COST OF "&TEXT(EGC,"$0.000")&"/MCF." -> (3) REFLECTS AVERAGE EXPECTED GAS COST OF $5.457/MCF.

Sheet Rate FT-LG
A1: =COMPANY -> DUKE ENERGY KENTUCKY
A2: =CASE -> CASE NO. 2025-00125
A3: ANNUALIZED REVENUES AT PROPOSED VS. MOST CURRENT RATES
A4: =TIME_PERIOD -> FOR THE TWELVE MONTHS ENDED AUGUST 31, 2025
A5: =SERV_TYPE -> (GAS SERVICE)
A6: =DATA_TYPE -> DATA: _X_ BASE PERIOD ___FORECASTED PERIOD | R6: SCHEDULE M-2.3
A7: =FILING_TYPE -> TYPE OF FILING: _X_ ORIGINAL ___UPDATED ___ REVISED | R7: PAGE 6 OF 7
A8: WORK PAPER REFERENCE NO(S).: | R8: WITNESS:
A9: =TIME -> 6 MOS ACTUAL/6MOS FORECASTED | R9: =WIT -> B. L. Sailers
A10: PROPOSED ANNUALIZED
L12: PROPOSED | N12: % OF REV TO | R12: PROPOSED
L13: REVENUE LESS | N13: TOTAL LESS | R13: TOTAL
A14: LINE | C14: RATE | D14: CLASS / | F14: CUSTOMER | J14: PROPOSED | L14: GAS COST | N14: GAS COST | P14: GAS COST | R14: REVENUE
A15: NO. | C15: CODE | D15: DESCRIPTION | F15: BILLS | H15: SALES(1) | J15: RATES | L15: REVENUE | N15: REVENUE | P15: REVENUE | R15: (F + H)
C16: (A) | D16: (B) | F16: (C) | H16: (D) | J16: (E) | L16: (F) | N16: (G) | P16: (H) | R16: (I)
H18: (MCF) | J18: ($/MCF) | L18: ($) | N18: (%) | P18: ($) | R18: ($)
A19: 1 | C19: FT - L
A20: 2 | C20: FIRM TRANSPORTATION - LARGE
A22: 3 | C22: ADMINISTRATIVE CHARGE | F22: 1771 | J22: =PRO_FTL_CUST -> 430 | L22: =ROUND((F22*J22),0) -> 761530 | N22: =ROUND((L22/L$35)*100,1) -> 10.6 | R22: =L22+P22 -> 761530
A24: 4 | C24: TRANSPORTATION CHARGE:
A25: 5 | C25: ALL CONSUMPTION | H25: 2797277 | J25: =PRO_FTL_COM -> 2.277 | L25: =ROUND((H25*J25),0) -> 6369400 | N25: =ROUND((L25/L$35)*100,1) -> 89 | R25: =L25+P25 -> 6369400
A27: 6 | C27: RATE FT-LARGE EXCLUDING RIDERS | F27: =F22 -> 1771 | H27: =H25 -> 2797277 | L27: =SUM(L22:L25) -> 7130930 | N27: =SUM(N22:N25) -> 99.6 | R27: =SUM(R22:R25) -> 7130930
A29: 7 | C29: RIDERS:
A30: 8 | C30: PIPELINE MODERNIZATION MECHANISM (PMM) | J30: =PRO_FTL_PMM -> 0.0102 | L30: =ROUND(H25*J30,0) -> 28532 | N30: =ROUND((L30/L$35)*100,1) -> 0.4 | R30: =L30+P30 -> 28532
A31: 9 | C31: GAS COST ADJUSTMENT TRANSITION (GCAT)(2) | J31: =PRO_FTL_GCAT -> 0.037 | N31: =ROUND((L31/L$35)*100,1) -> 0 | P31: =ROUND(H25*R38*J31,0) -> 3105 | R31: =L31+P31 -> 3105
A33: 10 | C33: TOTAL RIDERS | L33: =SUM(L30:L31) -> 28532 | N33: =ROUND((L33/L$35)*100,1) -> 0.4 | P33: =SUM(P30:P31) -> 3105 | R33: =SUM(R30:R31) -> 31637
A35: 11 | C35: TOTAL RATE FT - L INCLUDING RIDERS | F35: =F22 -> 1771 | H35: =H25 -> 2797277 | L35: =L27+L33 -> 7159462 | N35: =SUM(N27+N33) -> 100 | P35: =P27+P33 -> 3105 | R35: =R27+R33 -> 7162567
C37: (1) REFLECTS NORMALIZED VOLUMES.
C38: (2) GCAT only applies to FT-L customers during the first 12 months after they switch from sales service. Usage for this rider estimated at | R38: 0.03
T39: =COMPANY -> DUKE ENERGY KENTUCKY
T40: =CASE -> CASE NO. 2025-00125
T41: ANNUALIZED TEST YEAR REVENUES AT PROPOSED VS. MOST CURRENT RATES
T42: =TIME_PERIOD -> FOR THE TWELVE MONTHS ENDED AUGUST 31, 2025
T43: =SERV_TYPE -> (GAS SERVICE)
T44: =DATA_TYPE -> DATA: _X_ BASE PERIOD ___FORECASTED PERIOD | AN44: SCHEDULE M-2.2
T45: =FILING_TYPE -> TYPE OF FILING: _X_ ORIGINAL ___UPDATED ___ REVISED | AN45: =R7 -> PAGE 6 OF 7
T46: WORK PAPER REFERENCE NO(S).: | AN46: WITNESS:
T47: =TIME -> 6 MOS ACTUAL/6MOS FORECASTED | AN47: =WIT -> B. L. Sailers
T48: CURRENT ANNUALIZED
AD50: CURRENT | AF50: % OF REV TO | AH50: REVENUE | AJ50: % INCR IN | AN50: CURRENT | AP50: TOTAL
AB51: MOST | AD51: REVENUE LESS | AF51: TOTAL LESS | AH51: INCR LESS | AJ51: REV LESS | AN51: TOTAL | AP51: REVENUE
T52: LINE | V52: RATE | W52: CLASS / | X52: CUSTOMER | AB52: CURRENT | AD52: GAS COST | AF52: GAS COST | AH52: GAS COST REV | AJ52: GAS COST REV | AL52: GAS COST | AN52: REVENUE | AP52: % INCREASE
T53: NO. | V53: CODE | W53: DESCRIPTION | X53: BILLS | Z53: SALES(1) | AB53: RATES | AD53: REVENUE | AF53: REVENUE | AH53: (F - K) | AJ53: (M / K) | AL53: REVENUE | AN53: (K + H) | AP53: (M / K1)
V54: (A) | W54: (B) | X54: (C) | Z54: (D) | AB54: (J) | AD54: (K) | AF54: (L) | AH54: (M) | AJ54: (N) | AL54: (H) | AN54: (K1) | AP54: (O)
Z56: (MCF) | AB56: ($/MCF) | AD56: ($) | AF56: (%) | AH56: ($) | AJ56: (%) | AL56: ($) | AN56: ($) | AP56: (%)
T57: 1 | V57: FT - L
T58: 2 | V58: FIRM TRANSPORTATION - LARGE
T60: 3 | V60: ADMINISTRATIVE CHARGE | X60: =F22 -> 1771 | AB60: =CUR_FTL_CUST -> 430 | AD60: =ROUND(X60*AB60,0) -> 761530 | AF60: =IF(AD$73=0,"0.0 ",ROUND((AD60/AD$73)*100,1)) -> 11 | AH60: =L22-AD60 -> 0 | AJ60: =IF(AD60=0,"0.0 ",ROUND((AH60/AD60)*100,1)) -> 0 | AN60: =AD60+AL60 -> 761530 | AP60: =IF(AN60=0,"0.0 ",ROUND((AH60/AN60)*100,1)) -> 0
T62: 4 | V62: TRANSPORTATION CHARGE:
T63: 5 | V63: ALL CONSUMPTION | Z63: =H25 -> 2797277 | AB63: =CUR_FTL_COM -> 2.1976 | AD63: =ROUND(Z63*AB63,0) -> 6147296 | AF63: =IF(AD$73=0,"0.0 ",ROUND((AD63/AD$73)*100,1)) -> 88.6 | AH63: =L25-AD63 -> 222104 | AJ63: =IF(AD63=0,"0.0 ",ROUND((AH63/AD63)*100,1)) -> 3.6 | AN63: =AD63+AL63 -> 6147296 | AP63: =IF(AN63=0,"0.0 ",ROUND((AH63/AN63)*100,1)) -> 3.6
T65: 6 | V65: RATE FT-LARGE EXCLUDING RIDERS | X65: =X60 -> 1771 | Z65: =Z63 -> 2797277 | AD65: =SUM(AD60:AD63) -> 6908826 | AF65: =SUM(AF60:AF63) -> 99.6 | AH65: =SUM(AH60:AH63) -> 222104 | AJ65: =IF(AD65=0,"0.0 ",ROUND((AH65/AD65)*100,1)) -> 3.2 | AN65: =SUM(AN60:AN63) -> 6908826 | AP65: =IF(AN65=0,"0.0 ",ROUND((AH65/AN65)*100,1)) -> 3.2
T67: 7 | V67: RIDERS:
T68: 8 | V68: PIPELINE MODERNIZATION MECHANISM (PMM) | AB68: =CUR_FTL_PMM -> 0.0102 | AD68: =ROUND(Z63*AB68,0) -> 28532 | AF68: =IF(AD$73=0,"0.0 ",ROUND((AD68/AD$73)*100,1)) -> 0.4 | AH68: =L30-AD68 -> 0 | AJ68: =IF(AD68=0,"0.0 ",ROUND((AH68/AD68)*100,1)) -> 0 | AN68: =AD68+AL68 -> 28532 | AP68: =IF(AN68=0,"0.0 ",ROUND((AH68/AN68)*100,1)) -> 0
T69: 9 | V69: GAS COST ADJUSTMENT TRANSITION (GCAT) | AB69: =CUR_FTL_GCAT -> 0.037 | AF69: =IF(AD$73=0,"0.0 ",ROUND((AD69/AD$73)*100,1)) -> 0 | AH69: =L31-AD69 -> 0 | AJ69: =IF(AD69=0,"0.0 ",ROUND((AH69/AD69)*100,1)) -> 0.0 | AL69: =ROUND(Z63*R38*AB69,0) -> 3105 | AN69: =AD69+AL69 -> 3105 | AP69: =IF(AN69=0,"0.0 ",ROUND((AH69/AN69)*100,1)) -> 0
T71: 10 | V71: TOTAL RIDERS | AD71: =SUM(AD68:AD69) -> 28532 | AF71: =SUM(AF68:AF69) -> 0.4 | AH71: =SUM(AH68:AH69) -> 0 | AJ71: =IF(AD71=0,"0.0 ",ROUND((AH71/AD71)*100,1)) -> 0 | AL71: =SUM(AL68:AL69) -> 3105 | AN71: =SUM(AN68:AN69) -> 31637 | AP71: =IF(AN71=0,"0.0 ",ROUND((AH71/AN71)*100,1)) -> 0
T73: 11 | V73: TOTAL RATE FT - L INCLUDING RIDERS | X73: =X60 -> 1771 | Z73: =Z63 -> 2797277 | AD73: =SUM(AD65+AD71) -> 6937358 | AF73: =SUM(AF65+AF71) -> 100 | AH73: =SUM(AH65+AH71) -> 222104 | AJ73: =IF(AD73=0,"0.0 ",ROUND((AH73/AD73)*100,1)) -> 3.2 | AL73: =SUM(AL65+AL71) -> 3105 | AN73: =SUM(AN65+AN71) -> 6940463 | AP73: =IF(AN73=0,"0.0 ",ROUND((AH73/AN73)*100,1)) -> 3.2
V76: (1) REFLECTS NORMALIZED VOLUMES.
V77: ="(2) GCAT only applies to FT-L customers during the first 12 months after they switch from sales service. Usage for this rider estimated at "&TEXT(R38,"0%") -> (2) GCAT only applies to FT-L customers during the first 12 months after they switch from sales service. Usage for this rider estimated at 3%

Sheet Rate IT
A1: =COMPANY -> DUKE ENERGY KENTUCKY
A2: =CASE -> CASE NO. 2025-00125
A3: ANNUALIZED REVENUES AT PROPOSED VS. MOST CURRENT RATES
A4: =TIME_PERIOD -> FOR THE TWELVE MONTHS ENDED AUGUST 31, 2025
A5: =SERV_TYPE -> (GAS SERVICE)
A6: =DATA_TYPE -> DATA: _X_ BASE PERIOD ___FORECASTED PERIOD | R6: SCHEDULE M-2.3
A7: =FILING_TYPE -> TYPE OF FILING: _X_ ORIGINAL ___UPDATED ___ REVISED | R7: PAGE 7 OF 7
A8: WORK PAPER REFERENCE NO(S).: | R8: WITNESS:
A9: =TIME -> 6 MOS ACTUAL/6MOS FORECASTED | R9: =WIT -> B. L. Sailers
A10: PROPOSED ANNUALIZED
L12: PROPOSED | N12: % OF REV TO | R12: PROPOSED
L13: REVENUE LESS | N13: TOTAL LESS | R13: TOTAL
A14: LINE | C14: RATE | D14: CLASS / | F14: CUSTOMER | J14: PROPOSED | L14: GAS COST | N14: GAS COST | P14: GAS COST | R14: REVENUE
A15: NO. | C15: CODE | D15: DESCRIPTION | F15: BILLS | H15: SALES | J15: RATES | L15: REVENUE | N15: REVENUE | P15: REVENUE | R15: (F + H)
C16: (A) | D16: (B) | F16: (C) | H16: (D) | J16: (E) | L16: (F) | N16: (G) | P16: (H) | R16: (I)
H18: (MCF) | J18: ($/MCF) | L18: ($) | N18: (%) | P18: ($) | R18: ($)
A19: 1 | C19: IT
A20: 2 | C20: INTERRUPTIBLE TRANSPORTATION
A22: 3 | C22: ADMINISTRATIVE CHARGE | F22: 226 | J22: =PRO_IT_CUST -> 430 | L22: =ROUND((F22*J22),0) -> 97180 | N22: =ROUND((L22/L$34)*100,1) -> 4.8 | R22: =L22+P22 -> 97180
A24: 4 | C24: COMMODITY CHARGE:
A25: 5 | C25: ALL CONSUMPTION | H25: 1594408 | J25: =PRO_IT_COM -> 1.1878 | L25: =ROUND((H25*(J25)),0) -> 1893838 | N25: =ROUND((L25/L$34)*100,1) -> 94.3 | R25: =L25+P25 -> 1893838
A27: 6 | C27: RATE IT EXCLUDING RIDERS | F27: =F22 -> 226 | H27: =H25 -> 1594408 | L27: =SUM(L22:L25) -> 1991018 | N27: =SUM(N22:N25) -> 99.1 | R27: =SUM(R22:R25) -> 1991018
A29: 7 | C29: RIDERS:
A30: 8 | C30: PIPELINE MODERNIZATION MECHANISM (PMM) | J30: =PRO_IT_PMM -> 0.0115 | L30: =ROUND(H25*J30,0) -> 18336 | N30: =ROUND((L30/L$34)*100,1) -> 0.9 | R30: =L30+P30 -> 18336
A32: 9 | C32: TOTAL RIDERS | L32: =SUM(L29:L30) -> 18336 | N32: =ROUND((L32/L$34)*100,1) -> 0.9 | R32: =SUM(R29:R30) -> 18336
A34: 10 | C34: TOTAL RATE IT TRANSPORTATION | F34: =F27 -> 226 | H34: =H27 -> 1594408 | L34: =L27+L32 -> 2009354 | N34: =ROUND((L34/L$34)*100,1) -> 100 | R34: =R27+R32 -> 2009354
T41: =COMPANY -> DUKE ENERGY KENTUCKY
T42: =CASE -> CASE NO. 2025-00125
T43: ANNUALIZED TEST YEAR REVENUES AT PROPOSED VS. MOST CURRENT RATES
T44: =TIME_PERIOD -> FOR THE TWELVE MONTHS ENDED AUGUST 31, 2025
T45: =SERV_TYPE -> (GAS SERVICE)
T46: =DATA_TYPE -> DATA: _X_ BASE PERIOD ___FORECASTED PERIOD | AN46: SCHEDULE M-2.2
T47: =FILING_TYPE -> TYPE OF FILING: _X_ ORIGINAL ___UPDATED ___ REVISED | AN47: =R7 -> PAGE 7 OF 7
T48: WORK PAPER REFERENCE NO(S).: | AN48: WITNESS:
T49: =TIME -> 6 MOS ACTUAL/6MOS FORECASTED | AN49: =WIT -> B. L. Sailers
T50: CURRENT ANNUALIZED
AD52: CURRENT | AF52: % OF REV TO | AH52: REVENUE | AJ52: % INCR IN | AN52: CURRENT | AP52: TOTAL
AB53: MOST | AD53: REVENUE LESS | AF53: TOTAL LESS | AH53: INCR LESS | AJ53: REV LESS | AN53: TOTAL | AP53: REVENUE
T54: LINE | V54: RATE | W54: CLASS / | X54: CUSTOMER | AB54: CURRENT | AD54: GAS COST | AF54: GAS COST | AH54: GAS COST REV | AJ54: GAS COST REV | AL54: GAS COST | AN54: REVENUE | AP54: % INCREASE
T55: NO. | V55: CODE | W55: DESCRIPTION | X55: BILLS | Z55: SALES | AB55: RATES | AD55: REVENUE(3) | AF55: REVENUE | AH55: (F - K) | AJ55: (M / K) | AL55: REVENUE | AN55: (K + H) | AP55: (M / K1)
V56: (A) | W56: (B) | X56: (C) | Z56: (D) | AB56: (J) | AD56: (K) | AF56: (L) | AH56: (M) | AJ56: (N) | AL56: (H) | AN56: (K1) | AP56: (O)
Z58: (MCF) | AB58: ($/MCF) | AD58: ($) | AF58: (%) | AH58: ($) | AJ58: (%) | AL58: ($) | AN58: ($) | AP58: (%)
T59: 1 | V59: RATE IT
T60: 2 | V60: INTERRUPTIBLE TRANSPORTATION
T62: 3 | V62: ADMINISTRATIVE CHARGE | X62: =F22 -> 226 | AB62: =CUR_IT_CUST -> 430 | AD62: =ROUND(X62*AB62,0) -> 97180 | AF62: =ROUND((AD62/AD$74)*100,1) -> 5.1 | AH62: =L22-AD62 -> 0 | AJ62: =IF(AD62=0,"0.0 ",ROUND((AH62/AD62)*100,1)) -> 0 | AN62: =AD62+AL62 -> 97180 | AP62: =IF(AN62=0,"0.0 ",ROUND((AH62/AN62)*100,1)) -> 0
T64: 4 | V64: COMMODITY CHARGE:
T65: 5 | V65: ALL CONSUMPTION | Z65: =H25 -> 1594408 | AB65: =CUR_IT_COM -> 1.13 | AD65: =ROUND(Z65*AB65,0) -> 1801681 | AF65: =ROUND((AD65/AD$74)*100,1)-0.1 -> 93.9 | AH65: =L25-AD65 -> 92157 | AJ65: =IF(AD65=0,"0.0 ",ROUND((AH65/AD65)*100,1)) -> 5.1 | AN65: =AD65+AL65 -> 1801681 | AP65: =IF(AN65=0,"0.0 ",ROUND((AH65/AN65)*100,1)) -> 5.1
T67: 6 | V67: RATE IT EXCLUDING RIDERS | X67: =X62 -> 226 | Z67: =Z65 -> 1594408 | AD67: =SUM(AD62:AD65) -> 1898861 | AF67: =SUM(AF62:AF65) -> 99 | AH67: =L27-AD67 -> 92157 | AJ67: =IF(AD67=0,"0.0 ",ROUND((AH67/AD67)*100,1)) -> 4.9 | AN67: =SUM(AN62:AN65) -> 1898861 | AP67: =IF(AN67=0,"0.0 ",ROUND((AH67/AN67)*100,1)) -> 4.9
T69: 7 | V69: RIDERS:
T70: 8 | V70: PIPELINE MODERNIZATION MECHANISM (PMM) | AB70: =CUR_IT_PMM -> 0.0115 | AD70: =ROUND(Z65*AB70,0) -> 18336 | AF70: =ROUND((AD70/AD$74)*100,1) -> 1 | AH70: =L30-AD70 -> 0 | AJ70: =IF(AD70=0,"0.0 ",ROUND((AH70/AD70)*100,1)) -> 0 | AN70: =AD70+AL70 -> 18336 | AP70: =IF(AN70=0,"0.0 ",ROUND((AH70/AN70)*100,1)) -> 0
T72: 9 | V72: TOTAL RIDERS | AD72: =SUM(AD69:AD70) -> 18336 | AF72: =ROUND((AD72/AD$74)*100,1) -> 1 | AH72: =L32-AD72 -> 0 | AJ72: =IF(AD72=0,"0.0 ",ROUND((AH72/AD72)*100,1)) -> 0 | AN72: =SUM(AN69:AN70) -> 18336 | AP72: =IF(AN72=0,"0.0 ",ROUND((AH72/AN72)*100,1)) -> 0
T74: 10 | V74: TOTAL RATE IT TRANSPORTATION | X74: =X67 -> 226 | Z74: =Z67 -> 1594408 | AD74: =AD67+AD72 -> 1917197 | AF74: =ROUND((AD74/AD$74)*100,1) -> 100 | AH74: =AH67+AH72 -> 92157 | AJ74: =IF(AD74=0,"0.0 ",ROUND((AH74/AD74)*100,1)) -> 4.8 | AN74: =AN67+AN72 -> 1917197 | AP74: =IF(AN74=0,"0.0 ",ROUND((AH74/AN74)*100,1)) -> 4.8

Sheet SCH N
A1: =COMPANY -> DUKE ENERGY KENTUCKY
A2: =CASE -> CASE NO. 2025-00125
A3: EFFECTS OF PROPOSED RESIDENTIAL AND GENERAL SERVICE RATES
A4: TYPICAL BILL COMPARISON
A5: =SERV_TYPE -> (GAS SERVICE)
A7: =DATA_TYPE -> DATA: _X_ BASE PERIOD ___FORECASTED PERIOD | M7: SCHEDULE N
A8: =FILING_TYPE -> TYPE OF FILING: _X_ ORIGINAL ___UPDATED ___ REVISED | M8: PAGE 1 OF 2
A9: WORK PAPER REFERENCE NO(S).: | M9: WITNESS:
A10: =TIME -> 6 MOS ACTUAL/6MOS FORECASTED | M10: =WIT -> B. L. Sailers
F13: BILL DATA INCLUDING RIDERS LESS COST of GAS (1) | L13: TOTAL | M13: TOTAL
D14: LEVEL | E14: LEVEL | H14: DOLLAR | I14: PERCENT | L14: CURRENT | M14: PROPOSED | N14: PERCENT
D15: of | E15: of | F15: CURRENT | G15: PROPOSED | H15: INCREASE | I15: INCREASE | K15: GAS | L15: BILL | M15: BILL | N15: INCREASE
A16: LINE | C16: RATE | D16: DEMAND | E16: USE | F16: BILL | G16: BILL | H16: (D - C) | I16: (E / C) | K16: COST (1) | L16: (C + G) | M16: (D + G) | N16: (I-H) /H
A17: NO. | C17: CODE | D17: (A) | E17: (B) | F17: (C) | G17: (D) | H17: (E) | I17: (F) | K17: (G) | L17: (H) | M17: (I) | N17: (L)
E18: (MCF) | F18: ($) | G18: ($) | H18: ($) | I18: (%) | K18: ($) | L18: ($) | M18: ($) | N18: (%)
A19: 1 | C19: (RS)
A20: 2 | C20: RESIDENTIAL | D20: Not | E20: 1 | F20: =ROUND(E20*(CUR_RS+CUR_RS_DSM+CUR_RS_PMM)+CUR_RS_CUST+CUR_RS_HEA,2) -> 24.26 | G20: =ROUND(E20*(PRO_RS_COM+PRO_RS_DSM+PRO_RS_PMM)+PRO_RS_CUST+PRO_RS_HEA,2) -> 29.87 | H20: =G20-F20 -> 5.61 | I20: =ROUND(H20/F20,3)*100 -> 23.1 | K20: =ROUND(E20*EGC,2) -> 5.46 | L20: =F20+K20 -> 29.72 | M20: =G20+K20 -> 35.33 | N20: =ROUND((M20-L20)/L20,3)*100 -> 18.9
A21: 3 | D21: Applicable | E21: 3 | F21: 37.18 | G21: 47.02 | H21: 9.84 | I21: 26.5 | K21: 16.37 | L21: =F21+K21 -> 53.55 | M21: =G21+K21 -> 63.39 | N21: =ROUND((M21-L21)/L21,3)*100 -> 18.4
A22: 4 | E22: 6 | F22: 56.56 | G22: 72.74 | H22: 16.18 | I22: 28.6 | K22: 32.74 | L22: 89.3 | M22: 105.48 | N22: 18.1
A23: 5 | E23: 8 | F23: 69.48 | G23: 89.89 | H23: 20.41 | I23: 29.4 | K23: 43.66 | L23: 113.14 | M23: 133.55 | N23: 18
A24: 6 | E24: 10 | F24: 82.4 | G24: 107.04 | H24: 24.64 | I24: 29.9 | K24: 54.57 | L24: 136.97 | M24: 161.61 | N24: 18
A25: 7 | E25: 12 | F25: 95.32 | G25: 124.19 | H25: 28.87 | I25: 30.3 | K25: 65.48 | L25: 160.8 | M25: 189.67 | N25: 18
A26: 8 | E26: 16 | F26: 121.16 | G26: 158.48 | H26: 37.32 | I26: 30.8 | K26: 87.31 | L26: 208.47 | M26: 245.79 | N26: 17.9
A27: 9 | E27: 20 | F27: 147 | G27: 192.78 | H27: 45.78 | I27: 31.1 | K27: 109.14 | L27: 256.14 | M27: 301.92 | N27: 17.9
A28: 10 | E28: 30 | F28: 211.6 | G28: 278.51 | H28: 66.91 | I28: 31.6 | K28: 163.71 | L28: 375.31 | M28: 442.22 | N28: 17.8
A29: 11 | E29: 40 | F29: 276.2 | G29: 364.25 | H29: 88.05 | I29: 31.9 | K29: 218.28 | L29: 494.48 | M29: 582.53 | N29: 17.8
A30: 12 | E30: 50 | F30: 340.79 | G30: 449.99 | H30: 109.2 | I30: 32 | K30: 272.85 | L30: 613.64 | M30: 722.84 | N30: 17.8
A31: 13 | E31: 60 | F31: 405.39 | G31: 535.73 | H31: 130.34 | I31: 32.2 | K31: 327.42 | L31: 732.81 | M31: 863.15 | N31: 17.8
A32: 14 | E32: 80 | F32: 534.59 | G32: 707.2 | H32: 172.61 | I32: 32.3 | K32: 436.56 | L32: 971.15 | M32: 1143.76 | N32: 17.8
A33: 15 | E33: 100 | F33: 663.79 | G33: 878.68 | H33: 214.89 | I33: 32.4 | K33: 545.7 | L33: 1209.49 | M33: 1424.38 | N33: 17.8
A35: 16 | C35: (GS)
A36: 17 | C36: NON-RESIDENTIAL | E36: 5 | F36: =ROUND(E36*(CUR_GS+CUR_GS_PMM)+CUR_GS_CUST,2) -> 78.22 | G36: =ROUND(E36*(+PRO_GS+PRO_GS_PMM)+PRO_GS_CUST,2) -> 96.14 | H36: =G36-F36 -> 17.92 | I36: =ROUND(H36/F36,3)*100 -> 22.9 | K36: =ROUND(E36*EGC,2) -> 27.29 | L36: =F36+K36 -> 105.51 | M36: =G36+K36 -> 123.43 | N36: =ROUND((M36-L36)/L36,3)*100 -> 17
A37: 18 | E37: 10 | F37: 98.44 | G37: 127.28 | H37: 28.84 | I37: 29.3 | K37: 54.57 | L37: 153.01 | M37: 181.85 | N37: 18.8
A38: 19 | E38: 20 | F38: 138.89 | G38: 189.56 | H38: 50.67 | I38: 36.5 | K38: 109.14 | L38: 248.03 | M38: 298.7 | N38: 20.4
A39: 20 | E39: 40 | F39: 219.77 | G39: 314.12 | H39: 94.35 | I39: 42.9 | K39: 218.28 | L39: 438.05 | M39: 532.4 | N39: 21.5
A40: 21 | E40: 50 | F40: 260.22 | G40: 376.4 | H40: 116.18 | I40: 44.6 | K40: 272.85 | L40: 533.07 | M40: 649.25 | N40: 21.8
A41: 22 | E41: 100 | F41: 462.43 | G41: 687.8 | H41: 225.37 | I41: 48.7 | K41: 545.7 | L41: 1008.13 | M41: 1233.5 | N41: 22.4
A42: 23 | E42: 300 | F42: 1271.29 | G42: 1933.4 | H42: 662.11 | I42: 52.1 | K42: 1637.1 | L42: 2908.39 | M42: 3570.5 | N42: 22.8
A43: 24 | E43: 500 | F43: 2080.15 | G43: 3179 | H43: 1098.85 | I43: 52.8 | K43: 2728.5 | L43: 4808.65 | M43: 5907.5 | N43: 22.9
A44: 25 | E44: 700 | F44: 2889.01 | G44: 4424.6 | H44: 1535.59 | I44: 53.2 | K44: 3819.9 | L44: 6708.91 | M44: 8244.5 | N44: 22.9
A45: 26 | E45: 850 | F45: 3495.66 | G45: 5358.8 | H45: 1863.14 | I45: 53.3 | K45: 4638.45 | L45: 8134.11 | M45: 9997.25 | N45: 22.9
A46: 27 | E46: 1000 | F46: 4102.3 | G46: 6293 | H46: 2190.7 | I46: 53.4 | K46: 5457 | L46: 9559.3 | M46: 11750 | N46: 22.9
A47: 28 | E47: 2000 | F47: 8146.6 | G47: 12521 | H47: 4374.4 | I47: 53.7 | K47: 10914 | L47: 19060.6 | M47: 23435 | N47: 22.9
A48: 29 | E48: 3000 | F48: 12190.9 | G48: 18749 | H48: 6558.1 | I48: 53.8 | K48: 16371 | L48: 28561.9 | M48: 35120 | N48: 23
C51: ="(1) REFLECTS AVERAGE EXPECTED GAS COST OF "&TEXT(EGC,"$0.000")&"/MCF." -> (1) REFLECTS AVERAGE EXPECTED GAS COST OF $5.457/MCF.
A54: =COMPANY -> DUKE ENERGY KENTUCKY
A55: =CASE -> CASE NO. 2025-00125
A56: EFFECTS OF PROPOSED FIRM TRANSPORTATION-LARGE RATES
A57: AND INTERRUPTIBLE TRANSPORTATION RATES ON TYPICAL CUSTOMER BILLS
A58: =SERV_TYPE -> (GAS SERVICE)
A60: =DATA_TYPE -> DATA: _X_ BASE PERIOD ___FORECASTED PERIOD | N60: SCHEDULE N
A61: =FILING_TYPE -> TYPE OF FILING: _X_ ORIGINAL ___UPDATED ___ REVISED | N61: PAGE 2 OF 2
A62: WORK PAPER REFERENCE NO(S).: | N62: WITNESS:
A63: =TIME -> 6 MOS ACTUAL/6MOS FORECASTED | N63: =WIT -> B. L. Sailers
F66: BILL DATA INCLUDING RIDERS LESS COST of GAS (1) | L66: TOTAL | M66: TOTAL
D67: LEVEL | E67: LEVEL | H67: DOLLAR | I67: PERCENT | L67: CURRENT | M67: PROPOSED | N67: PERCENT
D68: of | E68: of | F68: CURRENT | G68: PROPOSED | H68: INCREASE | I68: INCREASE | K68: GAS | L68: BILL | M68: BILL | N68: INCREASE
A69: LINE | C69: RATE | D69: DEMAND | E69: USE | F69: BILL | G69: BILL | H69: (D - C) | I69: (E / C) | K69: COST (1) | L69: (C + G) | M69: (D + G) | N69: (I-H) /H
A70: NO. | C70: CODE | D70: (A) | E70: (B) | F70: (C) | G70: (D) | H70: (E) | I70: (F) | K70: (G) | L70: (H) | M70: (I) | N70: (L)
E71: (MCF) | F71: ($) | G71: ($) | H71: ($) | I71: (%) | K71: ($) | L71: ($) | M71: ($) | N71: (%)
A73: 1 | C73: (FT-L) | D73: Not
A74: 2 | C74: FIRM | D74: Applicable | E74: 1000 | F74: =ROUND(E74*(CUR_FTL_COM+CUR_FTL_PMM),2)+CUR_FTL_CUST -> 2637.8 | G74: =ROUND(E74*(PRO_FTL_COM+PRO_FTL_PMM),2)+PRO_FTL_CUST -> 2717.2 | H74: =G74-F74 -> 79.4 | I74: =ROUND(H74/F74,3)*100 -> 3 | K74: =ROUND(E74*PRO_FTL_GCAT,2) -> 37 | L74: =F74+K74 -> 2674.8 | M74: =G74+K74 -> 2754.2 | N74: =ROUND((M74-L74)/L74,3)*100 -> 3
A75: 3 | C75: TRANSPORTATION | E75: 1500 | F75: 3741.7 | G75: 3860.8 | H75: =G75-F75 -> 119.1 | I75: =ROUND(H75/F75,3)*100 -> 3.2 | K75: 55.5 | L75: =F75+K75 -> 3797.2 | M75: =G75+K75 -> 3916.3 | N75: =ROUND((M75-L75)/L75,3)*100 -> 3.1
A76: 4 | E76: 2000 | F76: 4845.6 | G76: 5004.4 | H76: 158.8 | I76: 3.3 | K76: 74 | L76: 4919.6 | M76: 5078.4 | N76: 3.2
A77: 5 | E77: 3000 | F77: 7053.4 | G77: 7291.6 | H77: 238.2 | I77: 3.4 | K77: 111 | L77: 7164.4 | M77: 7402.6 | N77: 3.3
A78: 6 | E78: 5000 | F78: 11469 | G78: 11866 | H78: 397 | I78: 3.5 | K78: 185 | L78: 11654 | M78: 12051 | N78: 3.4
A79: 7 | E79: 10000 | F79: 22508 | G79: 23302 | H79: 794 | I79: 3.5 | K79: 370 | L79: 22878 | M79: 23672 | N79: 3.5
A80: 8 | E80: 20000 | F80: 44586 | G80: 46174 | H80: 1588 | I80: 3.6 | K80: 740 | L80: 45326 | M80: 46914 | N80: 3.5
A81: 9 | E81: 30000 | F81: 66664 | G81: 69046 | H81: 2382 | I81: 3.6 | K81: 1110 | L81: 67774 | M81: 70156 | N81: 3.5
A82: 10 | E82: 40000 | F82: 88742 | G82: 91918 | H82: 3176 | I82: 3.6 | K82: 1480 | L82: 90222 | M82: 93398 | N82: 3.5
A83: 11 | E83: 50000 | F83: 110820 | G83: 114790 | H83: 3970 | I83: 3.6 | K83: 1850 | L83: 112670 | M83: 116640 | N83: 3.5
A84: 12 | E84: 75000 | F84: 166015 | G84: 171970 | H84: 5955 | I84: 3.6 | K84: 2775 | L84: 168790 | M84: 174745 | N84: 3.5
A85: 13 | E85: 100000 | F85: 221210 | G85: 229150 | H85: 7940 | I85: 3.6 | K85: 3700 | L85: 224910 | M85: 232850 | N85: 3.5
A86: 14 | E86: 150000 | F86: 331600 | G86: 343510 | H86: 11910 | I86: 3.6 | K86: 5550 | L86: 337150 | M86: 349060 | N86: 3.5
A87: 15 | E87: 200000 | F87: 441990 | G87: 457870 | H87: 15880 | I87: 3.6 | K87: 7400 | L87: 449390 | M87: 465270 | N87: 3.5
A89: 16 | C89: (IT) | D89: Not
A90: 17 | C90: INTERRUPTIBLE | D90: Applicable | E90: 2000 | F90: =ROUND(E90*(CUR_IT_COM+CUR_IT_PMM),2)+CUR_IT_CUST -> 2713 | G90: =ROUND(E90*(PRO_IT_COM+PRO_IT_PMM),2)+PRO_IT_CUST -> 2828.6 | H90: =G90-F90 -> 115.6 | I90: =ROUND(H90/F90,3)*100 -> 4.3 | K90: 0 | L90: =F90+K90 -> 2713 | M90: =G90+K90 -> 2828.6 | N90: =ROUND((M90-L90)/L90,3)*100 -> 4.3
A91: 18 | C91: TRANSPORTATION | E91: 5000 | F91: 6137.5 | G91: 6426.5 | H91: =G91-F91 -> 289 | I91: =ROUND(H91/F91,3)*100 -> 4.7 | K91: 0 | L91: =F91+K91 -> 6137.5 | M91: =G91+K91 -> 6426.5 | N91: =ROUND((M91-L91)/L91,3)*100 -> 4.7
A92: 19 | E92: 10000 | F92: 11845 | G92: 12423 | H92: 578 | I92: 4.9 | K92: 0 | L92: 11845 | M92: 12423 | N92: 4.9
A93: 20 | E93: 15000 | F93: 17552.5 | G93: 18419.5 | H93: 867 | I93: 4.9 | K93: 0 | L93: 17552.5 | M93: 18419.5 | N93: 4.9
A94: 21 | E94: 20000 | F94: 23260 | G94: 24416 | H94: 1156 | I94: 5 | K94: 0 | L94: 23260 | M94: 24416 | N94: 5
A95: 22 | E95: 25000 | F95: 28967.5 | G95: 30412.5 | H95: 1445 | I95: 5 | K95: 0 | L95: 28967.5 | M95: 30412.5 | N95: 5
A96: 23 | E96: 30000 | F96: 34675 | G96: 36409 | H96: 1734 | I96: 5 | K96: 0 | L96: 34675 | M96: 36409 | N96: 5
A97: 24 | E97: 40000 | F97: 46090 | G97: 48402 | H97: 2312 | I97: 5 | K97: 0 | L97: 46090 | M97: 48402 | N97: 5
A98: 25 | E98: 50000 | F98: 57505 | G98: 60395 | H98: 2890 | I98: 5 | K98: 0 | L98: 57505 | M98: 60395 | N98: 5
A99: 26 | E99: 100000 | F99: 114580 | G99: 120360 | H99: 5780 | I99: 5 | K99: 0 | L99: 114580 | M99: 120360 | N99: 5
A100: 27 | E100: 200000 | F100: 228730 | G100: 240290 | H100: 11560 | I100: 5.1 | K100: 0 | L100: 228730 | M100: 240290 | N100: 5.1
A101: 28 | E101: 300000 | F101: 342880 | G101: 360220 | H101: 17340 | I101: 5.1 | K101: 0 | L101: 342880 | M101: 360220 | N101: 5.1
C103: ="(1) INCLUDES CURRENT RIDER GCAT OF "&TEXT(CUR_FTL_GCAT,"$0.000_);($0.000)")&"/MCF" -> (1) INCLUDES CURRENT RIDER GCAT OF $0.037 /MCF
